Workbook

Sheet Inicio EI
A24: Descargue la versión Kindle
K32: Miguel Cervantes Jiménez

Sheet Cobb-Douglas EI (hidden)
A1: ELECCIÓN INTERTEMPORAL
A3: PREFERENCIAS COBB-DOUGLAS
B5: RECTA PRESUPUESTAL
B6: r | C6: mt | D6: mt+1 | E6: Ct | F6: Ct+1
B7: 0.5 | C7: 100.0 | D7: 500.0 | E7: ='Oculto EI'!AC27 -> 260.0 | F7: ='Oculto EI'!AD27 -> 260.0
B8: Inserte los datos correspondientes
B10: PARÁMETROS DE LA RECTA PRESUPUESTAL INTERTEMPORAL
B11: Ct+1 | C11: b0 | D11: b1 | E11: Ct
B12: =D7+((1+B7)*(C7-E7)) -> 260.0 | C12: =((1+B7)*C7)+D7 -> 650.0 | D12: =-(1+B7) -> (1.5) | E12: =(((1+'Cobb-Douglas EI'!B7)*'Cobb-Douglas EI'!C7)+'Cobb-Douglas EI'!D7)/(1+'Cobb-Douglas EI'!B7)*('Cobb-Douglas EI'!C20/('Cobb-Douglas EI'!C20+'Cobb-Douglas EI'!E20)) -> 260.0
B14: Máxima cantidad de ct | D14: =C7+(D7/(1+B7)) -> 433.3
B15: Máxima cantidad de ct+1 | D15: =((1+B7)*C7)+D7 -> 650.0
B16: Precio relativo (<0) | D16: =(C7/D7)*(-1) -> (0.2)
B18: PARÁMETROS DE FUNCIÓN COBB-DOUGLAS INTERTEMPORAL
B19: k | C19: a | D19: Ct* | E19: b | F19: Ct+1*
B20: ='Oculto EI'!AD28 -> 260.0 | C20: 0.6 | D20: ='Oculto EI'!AC27 -> 260.0 | E20: 0.4 | F20: ='Oculto EI'!AD27 -> 260.0
B23: Títulos
B24: Resultados
B25: Insertar datos
B26: Valores de equilibrio

Sheet Cobb-Douglas Ampliado EI (hidden)
A1: ELECCIÓN INTERTEMPORAL
A2: SISTEMA AMPLIADO
A4: PREFERENCIAS COBB-DOUGLAS
C6: RECTA PRESUPUESTAL
C7: r | D7: mt | E7: mt+1 | F7: Ct | G7: Ct+1
B8: INICIAL | C8: 0.2 | D8: 500.0 | E8: 1,000.0 | F8: ='Oculto EI'!AO27 -> 266.7 | G8: ='Oculto EI'!AP27 -> 1,280.0
B9: FINAL | C9: =C8 -> 0.2 | D9: =D8 -> 500.0 | E9: =E8 -> 1,000.0 | F9: ='Oculto EI'!BA27 -> 266.7 | G9: ='Oculto EI'!BB27 -> 1,280.0
C10: Inserte los datos correspondientes
C12: PARÁMETROS DE LA RECTA PRESUPUESTAL INTERTEMPORAL
C13: Ct+1 | D13: b0 | E13: b1 | F13: Ct
B14: INICIAL | C14: =E8+((1+C8)*(D8-F8)) -> 1,280.0 | D14: =((1+C8)*D8)+E8 -> 1,600.0 | E14: =-(1+C8) -> (1.2) | F14: =(((1+'Cobb-Douglas Ampliado EI'!C8)*'Cobb-Douglas Ampliado EI'!D8)+'Cobb-Douglas Ampliado EI'!E8)/(1+'Cobb-Douglas Ampliado EI'!C8)*('Cobb-Douglas Ampliado EI'!D24/('Cobb-Douglas Ampliado EI'!D24+'Cobb-Douglas Ampliado EI'!F24)) -> 266.7
B15: FINAL | C15: =E9+((1+C9)*(D9-F9)) -> 1,280.0 | D15: =((1+C9)*D9)+E9 -> 1,600.0 | E15: =-(1+C9) -> (1.2) | F15: =(((1+'Cobb-Douglas Ampliado EI'!C9)*'Cobb-Douglas Ampliado EI'!D9)+'Cobb-Douglas Ampliado EI'!E9)/(1+'Cobb-Douglas Ampliado EI'!C9)*('Cobb-Douglas Ampliado EI'!D24/('Cobb-Douglas Ampliado EI'!D24+'Cobb-Douglas Ampliado EI'!F24)) -> 266.7
D17: INICIAL | E17: FINAL
B18: Máxima cantidad de ct | D18: =D8+(E8/(1+C8)) -> 1,333.3 | E18: =D9+(E9/(1+C9)) -> 1,333.3
B19: Máxima cantidad de ct+1 | D19: =((1+C8)*D8)+E8 -> 1,600.0 | E19: =((1+C9)*D9)+E9 -> 1,600.0
B20: Precio relativo (<0) | D20: =(D8/E8)*(-1) -> (0.5) | E20: =(D9/E9)*(-1) -> (0.5)
C22: PARÁMETROS DE FUNCIÓN COBB-DOUGLAS INTERTEMPORAL
C23: k | D23: a | E23: Ct* | F23: b | G23: Ct+1*
B24: INICIAL | C24: ='Oculto EI'!AP28 -> 935.3 | D24: 0.2 | E24: ='Oculto EI'!AO27 -> 266.7 | F24: 0.8 | G24: ='Oculto EI'!AP27 -> 1,280.0
B25: FINAL | C25: ='Oculto EI'!BB28 -> 935.3 | D25: =D24 -> 0.2 | E25: ='Oculto EI'!BA27 -> 266.7 | F25: =F24 -> 0.8 | G25: ='Oculto EI'!BB27 -> 1,280.0
B28: Títulos
B29: Resultados
B30: Insertar datos
B31: Cantidad de equilibrio

Sheet Regulares EI (hidden)
A1: ELECCIÓN INTERTEMPORAL
A3: PREFERENCIAS REGULARES
B5: RECTA PRESUPUESTAL
B6: r | C6: m1 | D6: m2 | E6: C1 | F6: C2
B7: 0.1 | C7: 100.0 | D7: 100.0 | E7: ='Oculto EI'!BL28 -> 45.0 | F7: ='Oculto EI'!BL29 -> 160.5
B8: Inserte los datos correspondientes
B10: PARÁMETROS DE LA RECTA PRESUPUESTAL INTERTEMPORAL
B11: C2 | C11: b0 | D11: b1 | E11: C1
B12: =D7+((1+B7)*(C7-E7)) -> 160.5 | C12: =((1+B7)*C7)+D7 -> 210.0 | D12: =-(1+B7) -> (1.1) | E12: ='Regulares EI'!E20+(-'Regulares EI'!F20+'Regulares EI'!D7+('Regulares EI'!C7*(1+'Regulares EI'!B7))-('Regulares EI'!E20*(1+'Regulares EI'!B7)))/(2*(1+'Regulares EI'!B7)) -> 45.0
B14: Máxima cantidad de x1 | D14: =C7+(D7/(1+B7)) -> 190.9
B15: Máxima cantidad de x2 | D15: =((1+B7)*C7)+D7 -> 210.0
B16: Precio relativo (<0) | D16: =-(1+B7) -> (1.1)
B18: PARÁMETROS DE FUNCIÓN REGULAR INTERTEMPORAL
B19: k | C19: C1* | D19: C2* | E19: a | F19: b
B20: ='Oculto EI'!BM26 -> 3,327.5 | C20: ='Oculto EI'!BL28 -> 45.0 | D20: ='Oculto EI'!BS13 -> 160.5 | E20: (10.0) | F20: 100.0 | G20: 2
B23: Títulos
B24: Resultados
B25: Insertar datos
B26: Cantidad de equilibrio

Sheet Regulares Ampliado EI (hidden)
A1: ELECCIÓN INTERTEMPORAL
A2: SISTEMA AMPLIADO
A4: PREFERENCIAS POLINOMIALES
C6: RECTA PRESUPUESTAL
C7: r | D7: m1 | E7: m2 | F7: C1 | G7: C2
B8: INICIAL | C8: 0.1 | D8: 100.0 | E8: 100.0 | F8: ='Oculto EI'!BX28 -> 45.0 | G8: ='Oculto EI'!BX29 -> 160.5
B9: FINAL | C9: =C8 -> 0.1 | D9: =D8 -> 100.0 | E9: 100.0 | F9: ='Oculto EI'!CK28 -> 45.0 | G9: ='Oculto EI'!CK29 -> 160.5
C10: Inserte los datos correspondientes
C12: PARÁMETROS DE LA RECTA PRESUPUESTAL
C13: C2 | D13: b0 | E13: b1 | F13: C1
B14: INICIAL | C14: =E8+((1+C8)*(D8-F8)) -> 160.5 | D14: =((1+C8)*D8)+E8 -> 210.0 | E14: =-(1+C8) -> (1.1) | F14: ='Regulares Ampliado EI'!F24+(-'Regulares Ampliado EI'!G24+'Regulares Ampliado EI'!E8+('Regulares Ampliado EI'!D8*(1+'Regulares Ampliado EI'!C8))-('Regulares Ampliado EI'!F24*(1+'Regulares Ampliado EI'!C8)))/(2*(1+'Regulares Ampliado EI'!C8)) -> 45.0
B15: FINAL | C15: =E9+((1+C9)*(D9-F9)) -> 160.5 | D15: =((1+C9)*D9)+E9 -> 210.0 | E15: =-(1+C9) -> (1.1) | F15: ='Regulares Ampliado EI'!F25+(-'Regulares Ampliado EI'!G25+'Regulares Ampliado EI'!E9+('Regulares Ampliado EI'!D9*(1+'Regulares Ampliado EI'!C9))-('Regulares Ampliado EI'!F25*(1+'Regulares Ampliado EI'!C9)))/(2*(1+'Regulares Ampliado EI'!C9)) -> 45.0
D17: INICIAL | E17: FINAL
B18: Máxima cantidad de x1 | D18: =D8+(E8/(1+C8)) -> 190.9 | E18: =D9+(E9/(1+C9)) -> 190.9
B19: Máxima cantidad de x2 | D19: =((1+C8)*D8)+E8 -> 210.0 | E19: =((1+C9)*D9)+E9 -> 210.0
B20: Precio relativo (<0) | D20: =-(1+C8) -> (1.1) | E20: =-(1+C9) -> (1.1)
C22: PARÁMETROS DE FUNCIÓN REGULAR
C23: k | D23: C1* | E23: C2* | F23: a | G23: b
B24: INICIAL | C24: ='Oculto EI'!BY26 -> 3,327.5 | D24: ='Oculto EI'!BX28 -> 45.0 | E24: ='Oculto EI'!BX29 -> 160.5 | F24: (10.0) | G24: 100.0 | H24: 2
B25: FINAL | C25: ='Oculto EI'!CL26 -> 3,327.5 | D25: ='Oculto EI'!CK28 -> 45.0 | E25: ='Oculto EI'!CK29 -> 160.5 | F25: =F24 -> (10.0) | G25: =G24 -> 100.0
B28: Títulos
B29: Resultados
B30: Insertar datos
B31: Cantidad de equilibrio

Sheet Incertidumbre UE (hidden)
A1: ELECCIÓN INTERTEMPORAL
A2: Elección bajo incertidumbre
B4: Datos contingentes | C4: Caso 1 | D4: Caso 2
B5: a | C5: 0.7 | D5: =C5 -> 0.7
B6: Ingreso | C6: 100.0 | D6: =C6 -> 100.0
B7: Ganancia | C7: 70.0 | D7: =C7 -> 70.0
B8: Pérdida | C8: -70.0 | D8: =C8 -> -70.0
B9: p ganancia | C9: 0.50 | D9: =C9 -> 0.50
B10: p pérdida | C10: ='Oculto EI'!C33 -> 0.50 | D10: ='Oculto EI'!F33 -> 0.50
C11: Inserte los datos correspondientes
B12: U Ingreso | C12: ='Oculto EI'!C35 -> 25.12 | D12: ='Oculto EI'!F35 -> 25.12
B13: U Ganancia | C13: ='Oculto EI'!C38 -> 36.4 | D13: ='Oculto EI'!F38 -> 36.4
B14: U Pérdida | C14: ='Oculto EI'!C41 -> 5.4 | D14: ='Oculto EI'!F41 -> 5.4
B15: U Esperada | C15: ='Oculto EI'!C42 -> 23.62 | D15: ='Oculto EI'!F42 -> 23.62
B16: Toma de decisión | C16: ='Oculto EI'!C44 -> Rechaza el juego | D16: ='Oculto EI'!F44 -> Rechaza el juego
B17: Desviación media | C17: ='Oculto EI'!C45 -> 70.0 | D17: ='Oculto EI'!F45 -> 70.0
B18: Varianza | C18: ='Oculto EI'!C46 -> 4,900 | D18: ='Oculto EI'!F46 -> 4,900
B21: Títulos
B22: Resultados
B23: Insertar datos
G24: Gráfica caso 1

Sheet ValorPyF (hidden)
A1: ELECCIÓN INTERTEMPORAL
A2: Valor presente y valor futuro | CZ2: Nominal | DD2: Real
I3: 0 | CZ3: Valor presente | DD3: Valor presente | DF3: Capitalizado | DH3: Ponderador | DI3: anualizada nominal | DK3: anualizada real
CZ4: Anualizado | DD4: Capitalizado | DH4: 0 | DI4: =$DI$29*DH4 -> 0 | DJ4: =DI30 -> 100.00 | DK4: =$DJ$29*DH4 -> 0 | DL4: =DJ30 -> 100.00
B5: Anualizado nominal | F5: Anualizado real | CZ5: nominal | DB5: real | DD5: nominal | DF5: real | DH5: 0.05 | DI5: =$DI$29*DH5 -> 0.10 | DJ5: =DJ4+$DI$32 -> 101.05 | DK5: =$DJ$29*DH5 -> 0.10 | DL5: =DL4+$DJ$32 -> 101.00
B6: =ValorPyF!CZ6 -> Capital final | C6: =DA6 -> 121.0 | F6: =ValorPyF!DB6 -> Capital final | G6: =ValorPyF!DC6 -> 120.0 | CZ6: Capital final | DA6: =DA7*((1+(DA9-DA34)/(1+DA34))^DA8) -> 121.0 | DB6: Capital final | DC6: =DC7*((1+(DC9-DC10)/(1+DC10))^DC8) -> 120.0 | DD6: Capital final | DE6: =DE7*((1+(DE11-DE46)/(1+DE46))^(DE8*DE9)) -> 183.1 | DF6: Capital final | DG6: =DG7*(1+(DG14))^(DG8*DG9) -> 165.0 | DH6: 0.10 | DI6: 0.20 | DJ6: =DJ5+$DI$32 -> 102.10 | DK6: 0.20 | DL6: =DL5+$DJ$32 -> 102.00
B7: =ValorPyF!CZ7 -> Capital inicial | C7: 100.0 | F7: =ValorPyF!DB7 -> Capital inicial | G7: 100.0 | CZ7: Capital inicial | DA7: =ValorPyF!C7 -> 100.0 | DB7: Capital inicial | DC7: =ValorPyF!G7 -> 100.0 | DD7: Capital inicial | DE7: =ValorPyF!C17 -> 150.0 | DF7: Capital inicial | DG7: =ValorPyF!G17 -> 150.0 | DH7: 0.15 | DI7: 0.30 | DJ7: 103.15 | DK7: 0.30 | DL7: 102.99
B8: =ValorPyF!CZ8 -> Años | C8: 2.0 | F8: =ValorPyF!DB8 -> Años | G8: 2.0 | CZ8: Años | DA8: =ValorPyF!C8 -> 2.0 | DB8: Años | DC8: =ValorPyF!G8 -> 2.0 | DD8: Años | DE8: =ValorPyF!C18 -> 2.0 | DF8: Años | DG8: =ValorPyF!G18 -> 2.0 | DH8: 0.20 | DI8: 0.40 | DJ8: 104.20 | DK8: 0.40 | DL8: 103.99
B9: =ValorPyF!CZ9 -> Tasa de interés | C9: 10.0% | F9: =ValorPyF!DB9 -> Tasa de interés | G9: 15.0% | CZ9: Tasa de interés | DA9: =ValorPyF!C9 -> 0.1 | DB9: Tasa de interés | DC9: =ValorPyF!G9 -> 15.0% | DD9: Periodos de capitalización | DE9: =ValorPyF!C19 -> 12.0 | DF9: Periodos de capitalización | DG9: =ValorPyF!G19 -> 12.0 | DH9: 0.25 | DI9: 0.50 | DJ9: 105.25 | DK9: 0.50 | DL9: 104.99
B10: Inserte los datos correspondientes | F10: =ValorPyF!DB10 -> Tasa de inflación | G10: 5.0% | DA10: =DA8 -> 2.0 | DB10: Tasa de inflación | DC10: =ValorPyF!G10 -> 5.0% | DD10: Tasa de interés anualizada | DE10: =ValorPyF!C20 -> 10.0% | DF10: Tasa de interés anualizada | DG10: =ValorPyF!G20 -> 10.0% | DH10: 0.30 | DI10: 0.60 | DJ10: 106.30 | DK10: 0.60 | DL10: 105.99
F11: =ValorPyF!DB11 -> Tasa de interés real | G11: =ValorPyF!DC11 -> 9.5% | DB11: Tasa de interés real | DC11: =(DC9-DC10)/(1+DC10) -> 9.5% | DD11: Tasa de interés por periodo | DE11: =DE10/DE9 -> 0.8% | DF11: Tasa de interés por periodo | DG11: =DG10/DG9 -> 0.8% | DH11: 0.35 | DI11: 0.70 | DJ11: 107.35 | DK11: 0.70 | DL11: 106.98
F12: Inserte los datos correspondientes | CZ12: CI | DB12: CI | DF12: Tasa de inflación anual | DG12: =ValorPyF!G22 -> 5.0% | DH12: 0.40 | DI12: 0.80 | DJ12: 108.40 | DK12: 0.80 | DL12: 107.98
CZ13: Capital inicial | DA13: =DA14/((1+((DA16-DA34)/(1+DA34)))^DA15) -> 82.6 | DB13: Capital inicial | DC13: =DC14/((1+((DC16-DC17)/(1+DC17)))^DC15) -> 83.4 | DF13: Tasa de interés real anual | DG13: =(DG10-DG12)/(1+DG12) -> 4.8% | DH13: 0.45 | DI13: 0.90 | DJ13: 109.45 | DK13: 0.90 | DL13: 108.98
CZ14: Capital final | DA14: =ValorPyF!C7 -> 100.0 | DB14: Capital final | DC14: =ValorPyF!G7 -> 100.0 | DF14: Tasa de interés real por periodo | DG14: =DG13/DG9 -> 0.40% | DH14: 0.50 | DI14: 1.00 | DJ14: 110.50 | DK14: 1.00 | DL14: 109.98
B15: Capitalizado nominal | F15: Capitalizado real | CZ15: Años | DA15: =ValorPyF!C8 -> 2.0 | DB15: Años | DC15: =ValorPyF!G8 -> 2.0 | DD15: CI | DF15: CI | DH15: 0.55 | DI15: 1.10 | DJ15: 111.55 | DK15: 1.10 | DL15: 110.98
B16: =ValorPyF!DD6 -> Capital final | C16: =ValorPyF!DE6 -> 183.1 | F16: =ValorPyF!DF6 -> Capital final | G16: =ValorPyF!DG6 -> 165.0 | CZ16: Tasa de interés | DA16: =ValorPyF!C9 -> 0.1 | DB16: Tasa de interés | DC16: =ValorPyF!G9 -> 15.0% | DD16: Capital inicial | DE16: =DE17/((1+((DE21-DE46)/(1+DE46)))^(DE18*DE19)) -> 122.9 | DF16: Capital inicial | DG16: =DG17/((1+(DG24))^(DG18*DG19)) -> 136.4 | DH16: 0.60 | DI16: 1.20 | DJ16: 112.60 | DK16: 1.20 | DL16: 111.97
B17: =ValorPyF!DD7 -> Capital inicial | C17: 150.0 | F17: =ValorPyF!DF7 -> Capital inicial | G17: 150.0 | DB17: Tasa de inflación | DC17: =ValorPyF!G10 -> 5.0% | DD17: Capital final | DE17: =ValorPyF!C17 -> 150.0 | DF17: Capital final | DG17: =ValorPyF!G17 -> 150.0 | DH17: 0.65 | DI17: 1.30 | DJ17: 113.65 | DK17: 1.30 | DL17: 112.97
B18: =ValorPyF!DD8 -> Años | C18: 2.0 | F18: =ValorPyF!DF8 -> Años | G18: 2.0 | DB18: Tasa de interés real | DC18: =(DC16-DC17)/(1+DC17) -> 9.5% | DD18: Años | DE18: =ValorPyF!C18 -> 2.0 | DF18: Años | DG18: =ValorPyF!G18 -> 2.0 | DH18: 0.70 | DI18: 1.40 | DJ18: 114.70 | DK18: 1.40 | DL18: 113.97
B19: =ValorPyF!DD9 -> Periodos de capitalización | C19: 12.0 | F19: =ValorPyF!DF9 -> Periodos de capitalización | G19: 12.0 | CZ19: =ValorPyF!B5 -> Anualizado nominal | DB19: n | DD19: Periodos de capitalización | DE19: =ValorPyF!C19 -> 12.0 | DF19: Periodos de capitalización | DG19: =ValorPyF!G19 -> 12.0 | DH19: 0.75 | DI19: 1.50 | DJ19: 115.75 | DK19: 1.50 | DL19: 114.97
B20: =ValorPyF!DD10 -> Tasa de interés anualizada | C20: 10.0% | F20: =ValorPyF!DF10 -> Tasa de interés anualizada | G20: 10.0% | CZ20: Años | DA20: =(LN(DA22/DA21))/(LN(1+(DA23-DA34)/(1+DA34))) -> -41.0 | DB20: Años | DC20: =(LN(DC22/DC21))/(LN(1+(DC23-DC24)/(1+DC24))) -> -43.0 | DD20: Tasa de interés anualizada | DE20: =ValorPyF!C20 -> 0.1 | DF20: Tasa de interés anualizada | DG20: =ValorPyF!G20 -> 10% | DH20: 0.80 | DI20: 1.60 | DJ20: 116.80 | DK20: 1.60 | DL20: 115.96
B21: =ValorPyF!DD11 -> Tasa de interés por periodo | C21: =ValorPyF!DE11 -> 0.8% | F21: =ValorPyF!DF11 -> Tasa de interés por periodo | G21: =ValorPyF!DG11 -> 0.8% | CZ21: Capital inicial | DA21: =ValorPyF!C7 -> 100.0 | DB21: Capital inicial | DC21: =ValorPyF!G7 -> 100.0 | DD21: Tasa de interés por periodo | DE21: =DE20/DE19 -> 0.8% | DF21: Tasa de interés por periodo | DG21: =DG20/DG19 -> 0.8% | DH21: 0.85 | DI21: 1.70 | DJ21: 117.85 | DK21: 1.70 | DL21: 116.96
B22: Inserte los datos correspondientes | F22: =ValorPyF!DF12 -> Tasa de inflación anual | G22: 5.0% | CZ22: Capital final | DA22: =ValorPyF!C8 -> 2.0 | DB22: Capital final | DC22: =ValorPyF!G8 -> 2.0 | DF22: Tasa de inflación anual | DG22: =ValorPyF!G22 -> 5.0% | DH22: 0.90 | DI22: 1.80 | DJ22: 118.90 | DK22: 1.80 | DL22: 117.96
F23: =ValorPyF!DF13 -> Tasa de interés real anual | G23: =ValorPyF!DG13 -> 4.8% | CZ23: Tasa de interés | DA23: =ValorPyF!C9 -> 0.1 | DB23: Tasa de interés | DC23: =ValorPyF!G9 -> 0.2 | DF23: Tasa de interés real anual | DG23: =(DG20-DG22)/(1+DG22) -> 4.8% | DH23: 0.95 | DI23: 1.90 | DJ23: 119.95 | DK23: 1.90 | DL23: 118.96
F24: =ValorPyF!DF14 -> Tasa de interés real por periodo | G24: =ValorPyF!DG14 -> 0.4% | DB24: Tasa de inflación | DC24: =ValorPyF!G10 -> 0.1 | DF24: Tasa de interés real por periodo | DG24: =DG23/DG19 -> 0.40% | DH24: 1.00 | DI24: 2.00 | DJ24: 121.00 | DK24: 2.00 | DL24: 119.95
DA25: =ValorPyF!C4 -> 0 | DB25: Tasa de interés real | DC25: =(DC23-DC24)/(1+DC24) -> 0.1 | DD25: n | DF25: n | DH25: 1.05 | DI25: 2.10 | DJ25: 122.05 | DK25: 2.10 | DL25: 120.95
B26: Títulos | CZ26: r | DA26: =ValorPyF!C5 -> 0 | DB26: r | DC26: =ValorPyF!G24 -> 0.40% | DD26: Años | DE26: =((LN(DE28/DE27))/(LN(1+(DE31))))/DE29 -> -43.4 | DF26: Años | DG26: =(LN(DG28/DG27))/((LN(1+(DG34)))*DG29) -> -90.85 | DH26: 1.10 | DI26: 2.20 | DJ26: 123.10 | DK26: 2.20 | DL26: 121.95
B27: Resultados | CZ27: Tasa de interés | DA27: =DA34+((1+DA34)*(((DA29/DA28)^(1/DA30))-1)) -> -1.0 | DB27: Tasa de interés | DC27: =DC31+((1+DC31)*(((DC29/DC28)^(1/DC30))-1)) -> -1.0 | DD27: Capital inicial | DE27: =ValorPyF!C17 -> 150.0 | DF27: Capital inicial | DG27: =ValorPyF!G17 -> 150.0 | DI27: anualizada nominal | DJ27: anualizada real | DK27: capitalizada nominal | DL27: capitalizada real
B28: Insertar datos | CZ28: Capital inicial | DA28: =ValorPyF!C7 -> 100.0 | DB28: Capital inicial | DC28: =ValorPyF!G7 -> 100.0 | DD28: Capital final | DE28: =ValorPyF!C18 -> 2.0 | DF28: Capital final | DG28: =ValorPyF!G18 -> 2.0 | DI28: Anualizado nominal | DJ28: Anualizado real
CZ29: Capital final | DA29: =ValorPyF!C8 -> 2.0 | DB29: Capital final | DC29: =ValorPyF!G8 -> 2.0 | DD29: Periodos de capitalización | DE29: =ValorPyF!C19 -> 12.0 | DF29: Periodos de capitalización | DG29: =ValorPyF!G19 -> 12.0 | DH29: años | DI29: =DA8 -> 2.0 | DJ29: =DC8 -> 2.0
CZ30: Años | DA30: =ValorPyF!C9 -> 0.1 | DB30: Años | DC30: =ValorPyF!G9 -> 0.2 | DD30: Tasa de interés anualizada | DE30: =ValorPyF!C20 -> 10.0% | DF30: Tasa de interés anualizada | DG30: =ValorPyF!G20 -> 10.0% | DH30: capital inicial | DI30: =DA7 -> 100.0 | DJ30: =DC7 -> 100.0
DB31: Tasa de inflación | DC31: =ValorPyF!G10 -> 0.1 | DD31: Tasa de interés por periodo | DE31: =DE30/DE29 -> 0.8% | DF31: Tasa de interés por periodo | DG31: =DG30/DG29 -> 0.8% | DH31: capital final | DI31: =DA6 -> 121.0 | DJ31: =DC6 -> 120.0
DB32: Tasa de interés real | DC32: =(DC27-DC31)/(1+DC31) -> -1.0 | DF32: Tasa de inflación anual | DG32: =ValorPyF!G22 -> 5.0% | DI32: =(DI31-DI30)/20 -> 1.05 | DJ32: =(DJ31-DJ30)/20 -> 0.9977324263 | GI32: =GK65418 -> 0
DF33: Tasa de interés real anual | DG33: =(DG30-DG32)/(1+DG32) -> 4.8% | DI33: Anualizada nominal | DJ33: Anualizada real | DK33: Capitalizada nominal | DL33: Capitalizada real
CZ34: Inflación | DA34: 0.00 | DB34: Inflación | DC34: =ValorPyF!G11 -> 0.10 | DF34: Tasa de interés real por periodo | DG34: =DG33/DG29 -> 0.40%
DD35: r | DF35: r
DD36: Tasa de interés anualizada | DE36: =DE46+((1+DE42)*(((((DE38/DE37)^(1/(DE39*DE40)))-1))*DE40)) -> -9.7% | DF36: Tasa de interés anualizada | DG36: =DG42+((1+DG42)*(((((DG38/DG37)^(1/(DG39*DG40)))-1))*DG40)) -> -5.2%
DD37: Capital inicial | DE37: =ValorPyF!C17 -> 150.0 | DF37: Capital inicial | DG37: =ValorPyF!G17 -> 150.0
DD38: Capital final | DE38: =ValorPyF!C18 -> 2.0 | DF38: Capital final | DG38: =ValorPyF!G18 -> 2.0
DD39: Años | DE39: =ValorPyF!C19 -> 12.0 | DF39: Años | DG39: =ValorPyF!G19 -> 12.0
DD40: Periodos de capitalización | DE40: =ValorPyF!C20 -> 0.1 | DF40: Periodos de capitalización | DG40: =ValorPyF!G20 -> 0.1
DD41: Tasa de interés por periodo | DE41: =DE36/DE40 -> -97.3% | DF41: Tasa de interés por periodo | DG41: =DG36/DG40 -> -52.1%
DF42: Tasa de inflación anual | DG42: =ValorPyF!G22 -> 5.0%
DF43: Tasa de interés real anual | DG43: =(DG36-DG42)/(1+DG42) -> -9.7%
DF44: Tasa de interés real por periodo | DG44: =DG43/DG40 -> -97.26%
DD46: Inflación | DE46: 0.00 | DF46: Inflación | DG46: 0.00

Sheet MercadoActivo (hidden)
B1: ELECCIÓN INTERTEMPORAL
B2: Tasa de interés real
B5: Tasa de interés real
B6: Tasa de interés nominal | C6: 5%
B7: Tasa de inflación | C7: 6%
B8: Tasa de interés real | C8: ='Oculto EI'!DP7 -> -0.94%
B9: Tasa de interés real simple | C9: ='Oculto EI'!DP8 -> -1.00%
B11: Prestatario | C11: Caso 1 | D11: Caso 2
B12: Ct | C12: ='Oculto EI'!DP10 -> 100.0 | D12: ='Oculto EI'!DQ10 -> 100.0
B13: Ct+1 | C13: ='Oculto EI'!DP11 -> 100.0 | D13: ='Oculto EI'!DQ11 -> 100.0
B14: mt | C14: 100.0 | D14: ='Oculto EI'!DQ12 -> 100.0
B15: mt+1 | C15: 100.0 | D15: ='Oculto EI'!DQ13 -> 100.0
B16: r | C16: 0.0% | D16: 0.0%
B18: Función de utilidad | C18: Caso 1 | D18: Caso 2
B19: a | C19: 0.5 | D19: ='Oculto EI'!DQ17 -> 0.5
B20: 1-a | C20: ='Oculto EI'!DP18 -> 0.5 | D20: ='Oculto EI'!DQ18 -> 0.5
B21: U | C21: ='Oculto EI'!DP19 -> 100.0 | D21: ='Oculto EI'!DQ19 -> 100.0
B22: Inserte los datos correspondientes
B27: Títulos
B28: Resultados
B29: Insertar datos
B30: Cantidad de equilibrio

Sheet Oculto EI (hidden)
A1: INCERTIDUMBRE | Y1: COBB-DOUGLAS | AA1: Recta Presupuestaria | AH1: Curva de Indiferencia | AK1: AMPLIADO | AM1: Recta Presupuestaria inicial | AT1: Curva de Indiferencia inicial | AW1: AMPLIADO DOS | AY1: Recta Presupuestaria Final | BF1: Curva de Indiferencia final | BI1: REGULARES | BK1: Recta Presupuestaria | BR1: Curva de Indiferencia | BU1: AMPLIADO | BW1: Recta Presupuestaria Inicial | CD1: Curva de Indiferencia Inicial | CH1: AMPLIADO | CJ1: Recta Presupuestaria Final | CQ1: Curva de Indiferencia Final
D2: X1lin perdida | H2: X2lin ganancia | L2: X3lin utilidad segura | P2: X4lin utilidad del juego | T2: utilidad esperada de la riqueza | V2: x5line uejuego | Y2: Unidades | Z2: ponderador | AA2: x1 | AB2: x2 | AC2: x1lin | AE2: x2lin | AG2: Cota | AH2: x1 | AI2: x2 | AK2: Unidades | AL2: ponderador | AM2: x1 | AN2: x2 | AO2: x1lin | AQ2: x2lin | AS2: Cota | AT2: x1 | AU2: x2 | AW2: Unidades | AX2: ponderador | AY2: x1 | AZ2: x2 | BA2: x1lin | BC2: x2lin | BE2: Cota | BF2: x1 | BG2: x2 | BI2: Unidades | BJ2: ponderador | BK2: x1 | BL2: x2 | BM2: x1lin | BO2: x2lin | BQ2: Cota | BR2: x1 | BS2: x2 | BU2: Unidades | BV2: ponderador | BW2: x1 | BX2: x2 | BY2: x1lin | CA2: x2lin | CC2: Cota | CD2: x1 | CE2: x2 | CH2: Unidades | CI2: ponderador | CJ2: x1 | CK2: x2 | CL2: x1lin | CN2: x2lin | CP2: Cota | CQ2: x1 | CR2: x2 | CW2: ANUAL | CZ2: Nominal | DD2: Real | DU2: RP | DW2: Curva de indiferencia | DZ2: Punto de polonio | ED2: Punto de equilibrio | EH2: Prestamista | EK2: Curva de indiferencia
A3: PONDERADOR | B3: INGRESO | C3: Utilidad del ingreso | D3: X | E3: Y | F3: X | G3: Y | H3: X | I3: Y | J3: X | K3: Y | L3: X | M3: Y | N3: X | O3: Y | P3: X | Q3: Y | R3: X | S3: Y | T3: X | U3: Y | Y3: 1 | Z3: 0 | AA3: =('Cobb-Douglas EI'!$D$14)*Z3 -> 0 | AB3: ='Cobb-Douglas EI'!$D$7+('Cobb-Douglas EI'!$C$7*(1+'Cobb-Douglas EI'!$B$7))-((1+'Cobb-Douglas EI'!$B$7)*('Oculto EI'!AA3)) -> 650.00 | AC3: =$AC$27 -> 260 | AD3: =$AD$27*Z3 -> 0 | AE3: =$AC$27*'Oculto EI'!Z3 -> 0 | AF3: =$AD$27 -> 260 | AK3: 1 | AL3: 0 | AM3: =('Cobb-Douglas Ampliado EI'!$D$18)*AL3 -> 0 | AN3: ='Cobb-Douglas Ampliado EI'!$E$8+('Cobb-Douglas Ampliado EI'!$D$8*(1+'Cobb-Douglas Ampliado EI'!$C$8))-((1+'Cobb-Douglas Ampliado EI'!$C$8)*('Oculto EI'!AM3)) -> 1,600.00 | AO3: =$AO$27 -> 266.67 | AP3: =$AP$27*AL3 -> 0 | AQ3: =$AO$27*'Oculto EI'!AL3 -> 0 | AR3: =$AP$27 -> 1,280.00 | AW3: 1 | AX3: 0 | AY3: =('Cobb-Douglas Ampliado EI'!$E$18)*AX3 -> 0 | AZ3: ='Cobb-Douglas Ampliado EI'!$E$9+('Cobb-Douglas Ampliado EI'!$D$9*(1+'Cobb-Douglas Ampliado EI'!$C$9))-((1+'Cobb-Douglas Ampliado EI'!$C$9)*('Oculto EI'!AY3)) -> 1,600.00 | BA3: =$BA$27 -> 266.67 | BB3: =$BB$27*AX3 -> 0 | BC3: =$BA$27*'Oculto EI'!AX3 -> 0 | BD3: =$BB$27 -> 1,280.00 | BI3: 1 | BJ3: 0 | BK3: ='Regulares EI'!$D$14*'Oculto EI'!BJ3 -> 0 | BL3: ='Regulares EI'!$D$7+('Regulares EI'!$C$7*(1+'Regulares EI'!$B$7))-((1+'Regulares EI'!$B$7)*('Oculto EI'!BK3)) -> 210.00 | BM3: =$BR$13 -> 45.00 | BN3: =BP3*BJ3 -> 0 | BO3: =BM3*BJ3 -> 0 | BP3: =$BS$13 -> 160.50 | BU3: 1 | BV3: 0 | BW3: ='Regulares Ampliado EI'!$D$18*'Oculto EI'!BV3 -> 0 | BX3: ='Regulares Ampliado EI'!$E$8+('Regulares Ampliado EI'!$D$8*(1+'Regulares Ampliado EI'!$C$8))-((1+'Regulares Ampliado EI'!$C$8)*('Oculto EI'!BW3)) -> 210.00 | BY3: =$CD$13 -> 45.00 | BZ3: =CB3*BV3 -> 0 | CA3: =BY3*BV3 -> 0 | CB3: =$CE$13 -> 160.50 | CH3: 1 | CI3: 0 | CJ3: ='Regulares Ampliado EI'!$E$18*'Oculto EI'!CI3 -> 0 | CK3: ='Regulares Ampliado EI'!$E$9+('Regulares Ampliado EI'!$D$9*(1+'Regulares Ampliado EI'!$C$9))-((1+'Regulares Ampliado EI'!$C$9)*('Oculto EI'!CJ3)) -> 210.00 | CL3: =$CK$28 -> 45.00 | CM3: =CO3*CI3 -> 0 | CN3: =CL3*CI3 -> 0 | CO3: =$CK$29 -> 160.50 | CW3: Capital Inicial | CX3: 1,000.00 | CZ3: Valor presente | DD3: Valor presente | DF3: Capitalizado | DH3: Ponderador | DI3: anualizada nominal | DK3: anualizada real | DT3: Ponderador | DU3: C1 | DV3: C2 | DW3: C2 | DX3: C1rest | DY3: C2 rest | DZ3: x | EA3: y | EB3: x | EC3: y | ED3: x | EE3: y | EF3: x | EG3: y | EH3: Ponderador | EI3: C1 | EJ3: C2 | EK3: C2 | EL3: C1rest | EM3: C2 rest
A4: 0 | B4: =(($C$29+$C$30)*1.2)*A4 -> 0 | C4: =B4^$C$28 -> 0 | D4: =$C$37 -> 30.00 | E4: =$C$39*$A4 -> 0 | F4: =$C$37*$A4 -> 0 | G4: =$C$39 -> 10.81 | H4: =$C$36 -> 170.00 | I4: =$C$38*$A4 -> 0 | J4: =$C$36*$A4 -> 0 | K4: =$C$38 -> 36.42 | L4: =$C$29 -> 100.00 | M4: =$C$35*$A4 -> 0 | N4: =$C$29*$A4 -> 0 | O4: =$C$35 -> 25.12 | P4: =$G$29*A4 -> 0 | Q4: =$C$42 -> 23.62 | R4: =$G$29 -> 100.00 | S4: =(MAX($P$43,$P$44))*A4 -> 0 | T4: =C37 -> 30.00 | U4: =(T4)^$C$28 -> 10.81 | V4: =$O$43*A4 -> 0 | W4: =$P$43 -> 25.12 | Y4: 2 | Z4: 0.05 | AA4: =('Cobb-Douglas EI'!$D$14)*Z4 -> 21.67 | AB4: ='Cobb-Douglas EI'!$D$7+('Cobb-Douglas EI'!$C$7*(1+'Cobb-Douglas EI'!$B$7)-(1+'Cobb-Douglas EI'!$B$7)*('Oculto EI'!AA4)) -> 617.50 | AC4: =$AC$27 -> 260 | AD4: 13.00 | AE4: =$AC$27*'Oculto EI'!Z4 -> 13.00 | AF4: =$AD$27 -> 260 | AG4: 0.28 | AH4: =$AC$27*AG4 -> 72.80 | AI4: =($AD$28/(AH4^($AC$26)))^(1/$AD$26) -> 1,754.84 | AK4: 2 | AL4: 0.05 | AM4: =('Cobb-Douglas Ampliado EI'!$D$18)*AL4 -> 66.67 | AN4: ='Cobb-Douglas Ampliado EI'!$E$8+('Cobb-Douglas Ampliado EI'!$D$8*(1+'Cobb-Douglas Ampliado EI'!$C$8))-((1+'Cobb-Douglas Ampliado EI'!$C$8)*('Oculto EI'!AM4)) -> 1,520.00 | AO4: =$AO$27 -> 266.6666667 | AP4: 64.00 | AQ4: =$AO$27*'Oculto EI'!AL4 -> 13.33 | AR4: =$AP$27 -> 1280 | AS4: 0.28 | AT4: =$AO$27*AS4 -> 74.67 | AU4: =($AP$28/(AT4^($AO$26)))^(1/$AP$26) -> 1,759.63 | AW4: 2 | AX4: 0.05 | AY4: =('Cobb-Douglas Ampliado EI'!$E$18)*AX4 -> 66.67 | AZ4: ='Cobb-Douglas Ampliado EI'!$E$9+('Cobb-Douglas Ampliado EI'!$D$9*(1+'Cobb-Douglas Ampliado EI'!$C$9))-((1+'Cobb-Douglas Ampliado EI'!$C$9)*('Oculto EI'!AY4)) -> 1,520.00 | BA4: =$BA$27 -> 266.6666667 | BB4: =$BB$27*AX4 -> 64.00 | BC4: =$BA$27*'Oculto EI'!AX4 -> 13.33 | BD4: =$BB$27 -> 1280 | BE4: 0.28 | BF4: =$BA$27*BE4 -> 74.67 | BG4: =($BB$28/(BF4^($BA$26)))^(1/$BB$26) -> 1,759.63 | BI4: 2 | BJ4: 0.05 | BK4: ='Regulares EI'!$D$14*'Oculto EI'!BJ4 -> 9.55 | BL4: ='Regulares EI'!$D$7+('Regulares EI'!$C$7*(1+'Regulares EI'!$B$7))-((1+'Regulares EI'!$B$7)*('Oculto EI'!BK4)) -> 199.50 | BM4: =$BR$13 -> 45.00 | BN4: =BP4*BJ4 -> 8.03 | BO4: =BM4*BJ4 -> 2.25 | BP4: =$BS$13 -> 160.50 | BQ4: =$BQ$25 -> 0.1 | BR4: =$BR$13*BQ4 -> 4.50 | BS4: =($BM$26+($BM$30*BR4)-($BM$28*$BM$30))/(BR4-$BM$28) -> 329.48 | BU4: 2 | BV4: 0.05 | BW4: ='Regulares Ampliado EI'!$D$18*'Oculto EI'!BV4 -> 9.55 | BX4: ='Regulares Ampliado EI'!$E$8+('Regulares Ampliado EI'!$D$8*(1+'Regulares Ampliado EI'!$C$8))-((1+'Regulares Ampliado EI'!$C$8)*('Oculto EI'!BW4)) -> 199.50 | BY4: =$CD$13 -> 45.00 | BZ4: =CB4*BV4 -> 8.03 | CA4: =BY4*BV4 -> 2.25 | CB4: =$CE$13 -> 160.50 | CC4: =$BQ$25 -> 0.1 | CD4: =$BX$28*CC4 -> 4.50 | CE4: =($BY$26+($BY$30*CD4)-($BY$28*$BY$30))/(CD4-$BY$28) -> 329.48 | CH4: 2 | CI4: 0.05 | CJ4: ='Regulares Ampliado EI'!$E$18*'Oculto EI'!CI4 -> 9.55 | CK4: ='Regulares Ampliado EI'!$E$9+('Regulares Ampliado EI'!$D$9*(1+'Regulares Ampliado EI'!$C$9))-((1+'Regulares Ampliado EI'!$C$9)*('Oculto EI'!CJ4)) -> 199.50 | CL4: =$CK$28 -> 45.00 | CM4: =CO4*CI4 -> 8.03 | CN4: =CL4*CI4 -> 2.25 | CO4: =$CK$29 -> 160.50 | CP4: =$BQ$25 -> 0.1 | CQ4: =$CK$28*CP4 -> 4.50 | CR4: =($CL$26+($CL$30*CQ4)-($CL$28*$CL$30))/(CQ4-$CL$28) -> 329.48 | CW4: Tasa de Interés Anual | CX4: 10% | CZ4: Anualizado | DD4: Capitalizado | DH4: 0 | DI4: =$DI$29*DH4 -> 0 | DJ4: =DI30 -> 100.00 | DK4: =$DJ$29*DH4 -> 0 | DL4: =DJ30 -> 100.00 | DO4: Tasa de interés real | DT4: 0 | DU4: =($DP$12+($DP$13/(1+$DP$14)))*DT4 -> 0 | DV4: =($DP$12*(1+$DP$14))+$DP$13-(DU4*(1+$DP$14)) -> 200.00 | DW4: =($DP$19/(DU4^$DP$17))^(1/$DP$18) ->  | DX4: =($DP$19/(DY4^$DP$18))^(1/($DP$17)) ->  | DY4: =IF(DW4>$DV$4,DY5,DW4) ->  | DZ4: =$DP$12*DT4 -> 0 | EA4: =$DP$13 -> 100.0 | EB4: =$DP$12 -> 100.00 | EC4: =$DP$13*DT4 -> 0.0 | ED4: =$DP$10*DT4 -> 0.0 | EE4: =$DP$11 -> 100.0 | EF4: =$DP$10 -> 100.00 | EG4: =$DP$11*DT4 -> 0.0 | EH4: 0 | EI4: =($DQ$12+($DQ$13/(1+$DQ$14)))*EH4 -> 0 | EJ4: =($DQ$12*(1+$DQ$14))+$DQ$13-(EI4*(1+$DQ$14)) -> 200.00 | EK4: =($DQ$19/(EI4^$DQ$17))^(1/$DQ$18) ->  | EL4: =($DQ$19/(EM4^$DQ$18))^(1/($DQ$17)) ->  | EM4: =IF(EK4>$EJ$4,EM5,EK4) -> 
A5: 0.05 | B5: 10.20 | C5: =B5^$C$28 -> 5.08 | D5: =$C$37 -> 30.00 | E5: =$C$39*$A5 -> 0.54 | F5: =$C$37*$A5 -> 1.50 | G5: =$C$39 -> 10.81 | H5: =$C$36 -> 170.00 | I5: =$C$38*$A5 -> 1.82 | J5: =$C$36*$A5 -> 8.50 | K5: =$C$38 -> 36.42 | L5: =$C$29 -> 100.00 | M5: =$C$35*$A5 -> 1.26 | N5: =$C$29*$A5 -> 5.00 | O5: =$C$35 -> 25.12 | P5: =$G$29*A5 -> 5.00 | Q5: =$C$42 -> 23.62 | R5: 100.00 | S5: =(MAX($P$43,$P$44))*A5 -> 1.26 | T5: =T4+(($C$36-$C$37)/20) -> 37.00 | U5: =U4+(($C$38-$C$39)/20) -> 12.09 | V5: =$O$43*A5 -> 5.00 | W5: =$P$43 -> 25.12 | Y5: 3 | Z5: 0.10 | AA5: =('Cobb-Douglas EI'!$D$14)*Z5 -> 43.33 | AB5: ='Cobb-Douglas EI'!$D$7+('Cobb-Douglas EI'!$C$7*(1+'Cobb-Douglas EI'!$B$7)-(1+'Cobb-Douglas EI'!$B$7)*('Oculto EI'!AA5)) -> 585.00 | AC5: 260 | AD5: 26.00 | AE5: =$AC$27*'Oculto EI'!Z5 -> 26.00 | AF5: 260 | AG5: 0.36 | AH5: =$AC$27*AG5 -> 93.60 | AI5: =($AD$28/(AH5^($AC$26)))^(1/$AD$26) -> 1,203.70 | AK5: 3 | AL5: 0.10 | AM5: =('Cobb-Douglas Ampliado EI'!$D$18)*AL5 -> 133.33 | AN5: ='Cobb-Douglas Ampliado EI'!$E$8+('Cobb-Douglas Ampliado EI'!$D$8*(1+'Cobb-Douglas Ampliado EI'!$C$8))-((1+'Cobb-Douglas Ampliado EI'!$C$8)*('Oculto EI'!AM5)) -> 1,440.00 | AO5: 266.6666667 | AP5: 128.00 | AQ5: =$AO$27*'Oculto EI'!AL5 -> 26.67 | AR5: 1280 | AS5: 0.36 | AT5: 96.00 | AU5: 1,652.47 | AW5: 3 | AX5: 0.10 | AY5: =('Cobb-Douglas Ampliado EI'!$E$18)*AX5 -> 133.33 | AZ5: ='Cobb-Douglas Ampliado EI'!$E$9+('Cobb-Douglas Ampliado EI'!$D$9*(1+'Cobb-Douglas Ampliado EI'!$C$9))-((1+'Cobb-Douglas Ampliado EI'!$C$9)*('Oculto EI'!AY5)) -> 1,440.00 | BA5: 266.6666667 | BB5: 128.00 | BC5: =$BA$27*'Oculto EI'!AX5 -> 26.67 | BD5: 1280 | BE5: 0.36 | BF5: 96.00 | BG5: 1,652.47 | BI5: 3 | BJ5: 0.10 | BK5: ='Regulares EI'!$D$14*'Oculto EI'!BJ5 -> 19.09 | BL5: ='Regulares EI'!$D$7+('Regulares EI'!$C$7*(1+'Regulares EI'!$B$7))-((1+'Regulares EI'!$B$7)*('Oculto EI'!BK5)) -> 189.00 | BM5: 45.00 | BN5: 16.05 | BO5: 4.50 | BP5: 160.50 | BQ5: =BQ4+$BQ$25 -> 0.2 | BR5: 9.00 | BS5: 275.13 | BU5: 3 | BV5: 0.10 | BW5: ='Regulares Ampliado EI'!$D$18*'Oculto EI'!BV5 -> 19.09 | BX5: ='Regulares Ampliado EI'!$E$8+('Regulares Ampliado EI'!$D$8*(1+'Regulares Ampliado EI'!$C$8))-((1+'Regulares Ampliado EI'!$C$8)*('Oculto EI'!BW5)) -> 189.00 | BY5: 45.00 | BZ5: 16.05 | CA5: 4.50 | CB5: 160.50 | CC5: =CC4+$BQ$25 -> 0.2 | CD5: =$BX$28*CC5 -> 9.00 | CE5: 275.13 | CH5: 3 | CI5: 0.10 | CJ5: ='Regulares Ampliado EI'!$E$18*'Oculto EI'!CI5 -> 19.09 | CK5: ='Regulares Ampliado EI'!$E$9+('Regulares Ampliado EI'!$D$9*(1+'Regulares Ampliado EI'!$C$9))-((1+'Regulares Ampliado EI'!$C$9)*('Oculto EI'!CJ5)) -> 189.00 | CL5: 45.00 | CM5: 16.05 | CN5: 4.50 | CO5: 160.50 | CP5: =CP4+$BQ$25 -> 0.2 | CQ5: =$CK$28*CP5 -> 9.00 | CR5: 275.13 | CW5: Años | CX5: 20 | CZ5: nominal | DB5: real | DD5: nominal | DF5: real | DH5: 0.05 | DI5: =$DI$29*DH5 -> 0.10 | DJ5: =DJ4+$DI$32 -> 101.05 | DK5: =$DJ$29*DH5 -> 0.10 | DL5: =DL4+$DJ$32 -> 101.00 | DO5: Tasa de interés nominal | DP5: =MercadoActivo!C6 -> 0.050 | DT5: 0.05 | DU5: =($DP$12+($DP$13/(1+$DP$14)))*DT5 -> 10.00 | DV5: =($DP$12*(1+$DP$14))+$DP$13-(DU5*(1+$DP$14)) -> 190.00 | DW5: 1,000.00 | DX5: =($DP$19/(DY5^$DP$18))^(1/($DP$17)) -> 50.00 | DY5: =IF(DW5>$DV$4,DY6,DW5) -> 200 | DZ5: =$DP$12*DT5 -> 5.00 | EA5: 100.0 | EB5: =$DP$12 -> 100.00 | EC5: =$DP$13*DT5 -> 5.0 | ED5: =$DP$10*DT5 -> 5.0 | EE5: =$DP$11 -> 100.0 | EF5: =$DP$10 -> 100.00 | EG5: =$DP$11*DT5 -> 5.0 | EH5: 0.05 | EI5: =($DQ$12+($DQ$13/(1+$DQ$14)))*EH5 -> 10.00 | EJ5: =($DQ$12*(1+$DQ$14))+$DQ$13-(EI5*(1+$DQ$14)) -> 190.00 | EK5: =($DQ$19/(EI5^$DQ$17))^(1/$DQ$18) -> 1,000.00 | EL5: =($DQ$19/(EM5^$DQ$18))^(1/($DQ$17)) -> 50.00 | EM5: =IF(EK5>$EJ$4,EM6,EK5) -> 200
A6: 0.10 | B6: 20.40 | C6: 8.26 | D6: 30.00 | E6: 1.08 | F6: 3.00 | G6: 10.81 | H6: 170.00 | I6: 3.64 | J6: 17.00 | K6: 36.42 | L6: 100.00 | M6: 2.51 | N6: 10.00 | O6: 25.12 | P6: 10.00 | Q6: 23.62 | R6: 100.00 | S6: 2.51 | T6: =T5+(($C$36-$C$37)/20) -> 44.00 | U6: =U5+(($C$38-$C$39)/20) -> 13.37 | V6: 10.00 | W6: 25.12 | Y6: 4 | Z6: 0.15 | AA6: =('Cobb-Douglas EI'!$D$14)*Z6 -> 65.00 | AB6: ='Cobb-Douglas EI'!$D$7+('Cobb-Douglas EI'!$C$7*(1+'Cobb-Douglas EI'!$B$7)-(1+'Cobb-Douglas EI'!$B$7)*('Oculto EI'!AA6)) -> 552.50 | AC6: 260 | AD6: 39.00 | AE6: =$AC$27*'Oculto EI'!Z6 -> 39.00 | AF6: 260 | AG6: 0.44 | AH6: 114.40 | AI6: 890.83 | AK6: 4 | AL6: 0.15 | AM6: =('Cobb-Douglas Ampliado EI'!$D$18)*AL6 -> 200.00 | AN6: ='Cobb-Douglas Ampliado EI'!$E$8+('Cobb-Douglas Ampliado EI'!$D$8*(1+'Cobb-Douglas Ampliado EI'!$C$8))-((1+'Cobb-Douglas Ampliado EI'!$C$8)*('Oculto EI'!AM6)) -> 1,360.00 | AO6: 266.6666667 | AP6: 192.00 | AQ6: =$AO$27*'Oculto EI'!AL6 -> 40.00 | AR6: 1280 | AS6: 0.44 | AT6: 117.33 | AU6: 1,571.62 | AW6: 4 | AX6: 0.15 | AY6: =('Cobb-Douglas Ampliado EI'!$E$18)*AX6 -> 200.00 | AZ6: ='Cobb-Douglas Ampliado EI'!$E$9+('Cobb-Douglas Ampliado EI'!$D$9*(1+'Cobb-Douglas Ampliado EI'!$C$9))-((1+'Cobb-Douglas Ampliado EI'!$C$9)*('Oculto EI'!AY6)) -> 1,360.00 | BA6: 266.6666667 | BB6: 192.00 | BC6: =$BA$27*'Oculto EI'!AX6 -> 40.00 | BD6: 1280 | BE6: 0.44 | BF6: 117.33 | BG6: 1,571.62 | BI6: 4 | BJ6: 0.15 | BK6: ='Regulares EI'!$D$14*'Oculto EI'!BJ6 -> 28.64 | BL6: ='Regulares EI'!$D$7+('Regulares EI'!$C$7*(1+'Regulares EI'!$B$7))-((1+'Regulares EI'!$B$7)*('Oculto EI'!BK6)) -> 178.50 | BM6: 45.00 | BN6: 24.08 | BO6: 6.75 | BP6: 160.50 | BQ6: =BQ5+$BQ$25 -> 0.3 | BR6: 13.50 | BS6: 241.60 | BU6: 4 | BV6: 0.15 | BW6: ='Regulares Ampliado EI'!$D$18*'Oculto EI'!BV6 -> 28.64 | BX6: ='Regulares Ampliado EI'!$E$8+('Regulares Ampliado EI'!$D$8*(1+'Regulares Ampliado EI'!$C$8))-((1+'Regulares Ampliado EI'!$C$8)*('Oculto EI'!BW6)) -> 178.50 | BY6: 45.00 | BZ6: 24.08 | CA6: 6.75 | CB6: 160.50 | CC6: =CC5+$BQ$25 -> 0.3 | CD6: 13.50 | CE6: 241.60 | CH6: 4 | CI6: 0.15 | CJ6: ='Regulares Ampliado EI'!$E$18*'Oculto EI'!CI6 -> 28.64 | CK6: ='Regulares Ampliado EI'!$E$9+('Regulares Ampliado EI'!$D$9*(1+'Regulares Ampliado EI'!$C$9))-((1+'Regulares Ampliado EI'!$C$9)*('Oculto EI'!CJ6)) -> 178.50 | CL6: 45.00 | CM6: 24.08 | CN6: 6.75 | CO6: 160.50 | CP6: =CP5+$BQ$25 -> 0.3 | CQ6: 13.50 | CR6: 241.60 | CW6: Valor Futuro | CX6: =CX3*((1+CX4)^(CX5)) -> 6,727.50 | CZ6: Capital final | DA6: =DA7*((1+(DA9-DA34)/(1+DA34))^DA8) -> 121.0 | DB6: Capital final | DC6: =DC7*((1+(DC9-DC10)/(1+DC10))^DC8) -> 120.0 | DD6: Capital final | DE6: =DE7*((1+(DE11-DE46)/(1+DE46))^(DE8*DE9)) -> 183.1 | DF6: Capital final | DG6: =DG7*(1+(DG14))^(DG8*DG9) -> 165.0 | DH6: 0.10 | DI6: 0.20 | DJ6: =DJ5+$DI$32 -> 102.10 | DK6: 0.20 | DL6: =DL5+$DJ$32 -> 102.00 | DO6: Tasa de inflación | DP6: =MercadoActivo!C7 -> 0.060 | DT6: 0.10 | DU6: 20.00 | DV6: 180.00 | DW6: 500.00 | DX6: =($DP$19/(DY6^$DP$18))^(1/($DP$17)) -> 50.00 | DY6: 200 | DZ6: 10.00 | EA6: 100.0 | EB6: 100.00 | EC6: 10.0 | ED6: 10.0 | EE6: 100.0 | EF6: 100.00 | EG6: 10.0 | EH6: 0.10 | EI6: 20.00 | EJ6: 180.00 | EK6: 500.00 | EL6: 50.00 | EM6: 200
A7: 0.15 | B7: 30.60 | C7: 10.96 | D7: 30.00 | E7: 1.62 | F7: 4.50 | G7: 10.81 | H7: 170.00 | I7: 5.46 | J7: 25.50 | K7: 36.42 | L7: 100.00 | M7: 3.77 | N7: 15.00 | O7: 25.12 | P7: 15.00 | Q7: 23.62 | R7: 100.00 | S7: 3.77 | T7: 51.00 | U7: 14.65 | V7: 15.00 | W7: 25.12 | Y7: 5 | Z7: 0.20 | AA7: =('Cobb-Douglas EI'!$D$14)*Z7 -> 86.67 | AB7: ='Cobb-Douglas EI'!$D$7+('Cobb-Douglas EI'!$C$7*(1+'Cobb-Douglas EI'!$B$7)-(1+'Cobb-Douglas EI'!$B$7)*('Oculto EI'!AA7)) -> 520.00 | AC7: 260 | AD7: 52.00 | AE7: =$AC$27*'Oculto EI'!Z7 -> 52.00 | AF7: 260 | AG7: 0.52 | AH7: 135.20 | AI7: 693.38 | AK7: 5 | AL7: 0.20 | AM7: =('Cobb-Douglas Ampliado EI'!$D$18)*AL7 -> 266.67 | AN7: ='Cobb-Douglas Ampliado EI'!$E$8+('Cobb-Douglas Ampliado EI'!$D$8*(1+'Cobb-Douglas Ampliado EI'!$C$8))-((1+'Cobb-Douglas Ampliado EI'!$C$8)*('Oculto EI'!AM7)) -> 1,280.00 | AO7: 266.6666667 | AP7: 256.00 | AQ7: =$AO$27*'Oculto EI'!AL7 -> 53.33 | AR7: 1280 | AS7: 0.52 | AT7: 138.67 | AU7: 1,507.33 | AW7: 5 | AX7: 0.20 | AY7: =('Cobb-Douglas Ampliado EI'!$E$18)*AX7 -> 266.67 | AZ7: ='Cobb-Douglas Ampliado EI'!$E$9+('Cobb-Douglas Ampliado EI'!$D$9*(1+'Cobb-Douglas Ampliado EI'!$C$9))-((1+'Cobb-Douglas Ampliado EI'!$C$9)*('Oculto EI'!AY7)) -> 1,280.00 | BA7: 266.6666667 | BB7: 256.00 | BC7: =$BA$27*'Oculto EI'!AX7 -> 53.33 | BD7: 1280 | BE7: 0.52 | BF7: 138.67 | BG7: 1,507.33 | BI7: 5 | BJ7: 0.20 | BK7: ='Regulares EI'!$D$14*'Oculto EI'!BJ7 -> 38.18 | BL7: ='Regulares EI'!$D$7+('Regulares EI'!$C$7*(1+'Regulares EI'!$B$7))-((1+'Regulares EI'!$B$7)*('Oculto EI'!BK7)) -> 168.00 | BM7: 45.00 | BN7: 32.10 | BO7: 9.00 | BP7: 160.50 | BQ7: 0.4 | BR7: 18.00 | BS7: 218.84 | BU7: 5 | BV7: 0.20 | BW7: ='Regulares Ampliado EI'!$D$18*'Oculto EI'!BV7 -> 38.18 | BX7: ='Regulares Ampliado EI'!$E$8+('Regulares Ampliado EI'!$D$8*(1+'Regulares Ampliado EI'!$C$8))-((1+'Regulares Ampliado EI'!$C$8)*('Oculto EI'!BW7)) -> 168.00 | BY7: 45.00 | BZ7: 32.10 | CA7: 9.00 | CB7: 160.50 | CC7: 0.4 | CD7: 18.00 | CE7: 218.84 | CH7: 5 | CI7: 0.20 | CJ7: ='Regulares Ampliado EI'!$E$18*'Oculto EI'!CI7 -> 38.18 | CK7: ='Regulares Ampliado EI'!$E$9+('Regulares Ampliado EI'!$D$9*(1+'Regulares Ampliado EI'!$C$9))-((1+'Regulares Ampliado EI'!$C$9)*('Oculto EI'!CJ7)) -> 168.00 | CL7: 45.00 | CM7: 32.10 | CN7: 9.00 | CO7: 160.50 | CP7: 0.4 | CQ7: 18.00 | CR7: 218.84 | CZ7: Capital inicial | DA7: =ValorPyF!C7 -> 100.0 | DB7: Capital inicial | DC7: =ValorPyF!G7 -> 100.0 | DD7: Capital inicial | DE7: =ValorPyF!C17 -> 150.0 | DF7: Capital inicial | DG7: =ValorPyF!G17 -> 150.0 | DH7: 0.15 | DI7: 0.30 | DJ7: 103.15 | DK7: 0.30 | DL7: 102.99 | DO7: Tasa de interés real | DP7: =(DP5-DP6)/(1+DP6) -> -0.009 | DT7: 0.15 | DU7: 30.00 | DV7: 170.00 | DW7: 333.33 | DX7: 50.00 | DY7: 200 | DZ7: 15.00 | EA7: 100.0 | EB7: 100.00 | EC7: 15.0 | ED7: 15.0 | EE7: 100.0 | EF7: 100.00 | EG7: 15.0 | EH7: 0.15 | EI7: 30.00 | EJ7: 170.00 | EK7: 333.33 | EL7: 50.00 | EM7: 200
A8: 0.20 | B8: 40.80 | C8: 13.41 | D8: 30.00 | E8: 2.16 | F8: 6.00 | G8: 10.81 | H8: 170.00 | I8: 7.28 | J8: 34.00 | K8: 36.42 | L8: 100.00 | M8: 5.02 | N8: 20.00 | O8: 25.12 | P8: 20.00 | Q8: 23.62 | R8: 100.00 | S8: 5.02 | T8: 58.00 | U8: 15.93 | V8: 20.00 | W8: 25.12 | Y8: 6 | Z8: 0.25 | AA8: =('Cobb-Douglas EI'!$D$14)*Z8 -> 108.33 | AB8: ='Cobb-Douglas EI'!$D$7+('Cobb-Douglas EI'!$C$7*(1+'Cobb-Douglas EI'!$B$7)-(1+'Cobb-Douglas EI'!$B$7)*('Oculto EI'!AA8)) -> 487.50 | AC8: 260 | AD8: 65.00 | AE8: =$AC$27*'Oculto EI'!Z8 -> 65.00 | AF8: 260 | AG8: 0.6 | AH8: 156.00 | AI8: 559.43 | AK8: 6 | AL8: 0.25 | AM8: =('Cobb-Douglas Ampliado EI'!$D$18)*AL8 -> 333.33 | AN8: ='Cobb-Douglas Ampliado EI'!$E$8+('Cobb-Douglas Ampliado EI'!$D$8*(1+'Cobb-Douglas Ampliado EI'!$C$8))-((1+'Cobb-Douglas Ampliado EI'!$C$8)*('Oculto EI'!AM8)) -> 1,200.00 | AO8: 266.6666667 | AP8: 320.00 | AQ8: =$AO$27*'Oculto EI'!AL8 -> 66.67 | AR8: 1280 | AS8: 0.6 | AT8: 160.00 | AU8: 1,454.36 | AW8: 6 | AX8: 0.25 | AY8: =('Cobb-Douglas Ampliado EI'!$E$18)*AX8 -> 333.33 | AZ8: ='Cobb-Douglas Ampliado EI'!$E$9+('Cobb-Douglas Ampliado EI'!$D$9*(1+'Cobb-Douglas Ampliado EI'!$C$9))-((1+'Cobb-Douglas Ampliado EI'!$C$9)*('Oculto EI'!AY8)) -> 1,200.00 | BA8: 266.6666667 | BB8: 320.00 | BC8: =$BA$27*'Oculto EI'!AX8 -> 66.67 | BD8: 1280 | BE8: 0.6 | BF8: 160.00 | BG8: 1,454.36 | BI8: 6 | BJ8: 0.25 | BK8: ='Regulares EI'!$D$14*'Oculto EI'!BJ8 -> 47.73 | BL8: ='Regulares EI'!$D$7+('Regulares EI'!$C$7*(1+'Regulares EI'!$B$7))-((1+'Regulares EI'!$B$7)*('Oculto EI'!BK8)) -> 157.50 | BM8: 45.00 | BN8: 40.13 | BO8: 11.25 | BP8: 160.50 | BQ8: 0.5 | BR8: 22.50 | BS8: 202.38 | BU8: 6 | BV8: 0.25 | BW8: ='Regulares Ampliado EI'!$D$18*'Oculto EI'!BV8 -> 47.73 | BX8: ='Regulares Ampliado EI'!$E$8+('Regulares Ampliado EI'!$D$8*(1+'Regulares Ampliado EI'!$C$8))-((1+'Regulares Ampliado EI'!$C$8)*('Oculto EI'!BW8)) -> 157.50 | BY8: 45.00 | BZ8: 40.13 | CA8: 11.25 | CB8: 160.50 | CC8: 0.5 | CD8: 22.50 | CE8: 202.38 | CH8: 6 | CI8: 0.25 | CJ8: ='Regulares Ampliado EI'!$E$18*'Oculto EI'!CI8 -> 47.73 | CK8: ='Regulares Ampliado EI'!$E$9+('Regulares Ampliado EI'!$D$9*(1+'Regulares Ampliado EI'!$C$9))-((1+'Regulares Ampliado EI'!$C$9)*('Oculto EI'!CJ8)) -> 157.50 | CL8: 45.00 | CM8: 40.13 | CN8: 11.25 | CO8: 160.50 | CP8: 0.5 | CQ8: 22.50 | CR8: 202.38 | CW8: Capital final | CX8: 1,500,000.00 | CZ8: Años | DA8: =ValorPyF!C8 -> 2.0 | DB8: Años | DC8: =ValorPyF!G8 -> 2.0 | DD8: Años | DE8: =ValorPyF!C18 -> 2.0 | DF8: Años | DG8: =ValorPyF!G18 -> 2.0 | DH8: 0.20 | DI8: 0.40 | DJ8: 104.20 | DK8: 0.40 | DL8: 103.99 | DO8: Tasa de interés real simplificada | DP8: =DP5-DP6 -> -0.010 | DT8: 0.20 | DU8: 40.00 | DV8: 160.00 | DW8: 250.00 | DX8: 50.00 | DY8: 200 | DZ8: 20.00 | EA8: 100.0 | EB8: 100.00 | EC8: 20.0 | ED8: 20.0 | EE8: 100.0 | EF8: 100.00 | EG8: 20.0 | EH8: 0.20 | EI8: 40.00 | EJ8: 160.00 | EK8: 250.00 | EL8: 50.00 | EM8: 200
A9: 0.25 | B9: 51.00 | C9: 15.68 | D9: 30.00 | E9: 2.70 | F9: 7.50 | G9: 10.81 | H9: 170.00 | I9: 9.10 | J9: 42.50 | K9: 36.42 | L9: 100.00 | M9: 6.28 | N9: 25.00 | O9: 25.12 | P9: 25.00 | Q9: 23.62 | R9: 100.00 | S9: 6.28 | T9: 65.00 | U9: 17.21 | V9: 25.00 | W9: 25.12 | Y9: 7 | Z9: 0.30 | AA9: =('Cobb-Douglas EI'!$D$14)*Z9 -> 130.00 | AB9: ='Cobb-Douglas EI'!$D$7+('Cobb-Douglas EI'!$C$7*(1+'Cobb-Douglas EI'!$B$7)-(1+'Cobb-Douglas EI'!$B$7)*('Oculto EI'!AA9)) -> 455.00 | AC9: 260 | AD9: 78.00 | AE9: =$AC$27*'Oculto EI'!Z9 -> 78.00 | AF9: 260 | AG9: 0.68 | AH9: 176.80 | AI9: 463.67 | AK9: 7 | AL9: 0.30 | AM9: =('Cobb-Douglas Ampliado EI'!$D$18)*AL9 -> 400.00 | AN9: ='Cobb-Douglas Ampliado EI'!$E$8+('Cobb-Douglas Ampliado EI'!$D$8*(1+'Cobb-Douglas Ampliado EI'!$C$8))-((1+'Cobb-Douglas Ampliado EI'!$C$8)*('Oculto EI'!AM9)) -> 1,120.00 | AO9: 266.6666667 | AP9: 384.00 | AQ9: =$AO$27*'Oculto EI'!AL9 -> 80.00 | AR9: 1280 | AS9: 0.68 | AT9: 181.33 | AU9: 1,409.56 | AW9: 7 | AX9: 0.30 | AY9: =('Cobb-Douglas Ampliado EI'!$E$18)*AX9 -> 400.00 | AZ9: ='Cobb-Douglas Ampliado EI'!$E$9+('Cobb-Douglas Ampliado EI'!$D$9*(1+'Cobb-Douglas Ampliado EI'!$C$9))-((1+'Cobb-Douglas Ampliado EI'!$C$9)*('Oculto EI'!AY9)) -> 1,120.00 | BA9: 266.6666667 | BB9: 384.00 | BC9: =$BA$27*'Oculto EI'!AX9 -> 80.00 | BD9: 1280 | BE9: 0.68 | BF9: 181.33 | BG9: 1,409.56 | BI9: 7 | BJ9: 0.30 | BK9: ='Regulares EI'!$D$14*'Oculto EI'!BJ9 -> 57.27 | BL9: ='Regulares EI'!$D$7+('Regulares EI'!$C$7*(1+'Regulares EI'!$B$7))-((1+'Regulares EI'!$B$7)*('Oculto EI'!BK9)) -> 147.00 | BM9: 45.00 | BN9: 48.15 | BO9: 13.50 | BP9: 160.50 | BQ9: 0.6 | BR9: 27.00 | BS9: 189.93 | BU9: 7 | BV9: 0.30 | BW9: ='Regulares Ampliado EI'!$D$18*'Oculto EI'!BV9 -> 57.27 | BX9: ='Regulares Ampliado EI'!$E$8+('Regulares Ampliado EI'!$D$8*(1+'Regulares Ampliado EI'!$C$8))-((1+'Regulares Ampliado EI'!$C$8)*('Oculto EI'!BW9)) -> 147.00 | BY9: 45.00 | BZ9: 48.15 | CA9: 13.50 | CB9: 160.50 | CC9: 0.6 | CD9: 27.00 | CE9: 189.93 | CH9: 7 | CI9: 0.30 | CJ9: ='Regulares Ampliado EI'!$E$18*'Oculto EI'!CI9 -> 57.27 | CK9: ='Regulares Ampliado EI'!$E$9+('Regulares Ampliado EI'!$D$9*(1+'Regulares Ampliado EI'!$C$9))-((1+'Regulares Ampliado EI'!$C$9)*('Oculto EI'!CJ9)) -> 147.00 | CL9: 45.00 | CM9: 48.15 | CN9: 13.50 | CO9: 160.50 | CP9: 0.6 | CQ9: 27.00 | CR9: 189.93 | CW9: Tasa de Interés Anual | CX9: 15% | CZ9: Tasa de interés | DA9: =ValorPyF!C9 -> 0.1 | DB9: Tasa de interés | DC9: =ValorPyF!G9 -> 15.0% | DD9: Periodos de capitalización | DE9: =ValorPyF!C19 -> 12.0 | DF9: Periodos de capitalización | DG9: =ValorPyF!G19 -> 12.0 | DH9: 0.25 | DI9: 0.50 | DJ9: 105.25 | DK9: 0.50 | DL9: 104.99 | DO9: Prestatario | DP9: Caso 1 | DQ9: Caso 2 | DT9: 0.25 | DU9: 50.00 | DV9: 150.00 | DW9: 200.00 | DX9: 50.00 | DY9: 200 | DZ9: 25.00 | EA9: 100.0 | EB9: 100.00 | EC9: 25.0 | ED9: 25.0 | EE9: 100.0 | EF9: 100.00 | EG9: 25.0 | EH9: 0.25 | EI9: 50.00 | EJ9: 150.00 | EK9: 200.00 | EL9: 50.00 | EM9: 200
A10: 0.30 | B10: 61.20 | C10: 17.81 | D10: 30.00 | E10: 3.24 | F10: 9.00 | G10: 10.81 | H10: 170.00 | I10: 10.93 | J10: 51.00 | K10: 36.42 | L10: 100.00 | M10: 7.54 | N10: 30.00 | O10: 25.12 | P10: 30.00 | Q10: 23.62 | R10: 100.00 | S10: 7.54 | T10: 72.00 | U10: 18.50 | V10: 30.00 | W10: 25.12 | Y10: 8 | Z10: 0.35 | AA10: =('Cobb-Douglas EI'!$D$14)*Z10 -> 151.67 | AB10: ='Cobb-Douglas EI'!$D$7+('Cobb-Douglas EI'!$C$7*(1+'Cobb-Douglas EI'!$B$7)-(1+'Cobb-Douglas EI'!$B$7)*('Oculto EI'!AA10)) -> 422.50 | AC10: 260 | AD10: 91.00 | AE10: =$AC$27*'Oculto EI'!Z10 -> 91.00 | AF10: 260 | AG10: 0.76 | AH10: 197.60 | AI10: 392.42 | AK10: 8 | AL10: 0.35 | AM10: =('Cobb-Douglas Ampliado EI'!$D$18)*AL10 -> 466.67 | AN10: ='Cobb-Douglas Ampliado EI'!$E$8+('Cobb-Douglas Ampliado EI'!$D$8*(1+'Cobb-Douglas Ampliado EI'!$C$8))-((1+'Cobb-Douglas Ampliado EI'!$C$8)*('Oculto EI'!AM10)) -> 1,040.00 | AO10: 266.6666667 | AP10: 448.00 | AQ10: =$AO$27*'Oculto EI'!AL10 -> 93.33 | AR10: 1280 | AS10: 0.76 | AT10: 202.67 | AU10: 1,370.90 | AW10: 8 | AX10: 0.35 | AY10: =('Cobb-Douglas Ampliado EI'!$E$18)*AX10 -> 466.67 | AZ10: ='Cobb-Douglas Ampliado EI'!$E$9+('Cobb-Douglas Ampliado EI'!$D$9*(1+'Cobb-Douglas Ampliado EI'!$C$9))-((1+'Cobb-Douglas Ampliado EI'!$C$9)*('Oculto EI'!AY10)) -> 1,040.00 | BA10: 266.6666667 | BB10: 448.00 | BC10: =$BA$27*'Oculto EI'!AX10 -> 93.33 | BD10: 1280 | BE10: 0.76 | BF10: 202.67 | BG10: 1,370.90 | BI10: 8 | BJ10: 0.35 | BK10: ='Regulares EI'!$D$14*'Oculto EI'!BJ10 -> 66.82 | BL10: ='Regulares EI'!$D$7+('Regulares EI'!$C$7*(1+'Regulares EI'!$B$7))-((1+'Regulares EI'!$B$7)*('Oculto EI'!BK10)) -> 136.50 | BM10: 45.00 | BN10: 56.18 | BO10: 15.75 | BP10: 160.50 | BQ10: 0.7 | BR10: 31.50 | BS10: 180.18 | BU10: 8 | BV10: 0.35 | BW10: ='Regulares Ampliado EI'!$D$18*'Oculto EI'!BV10 -> 66.82 | BX10: ='Regulares Ampliado EI'!$E$8+('Regulares Ampliado EI'!$D$8*(1+'Regulares Ampliado EI'!$C$8))-((1+'Regulares Ampliado EI'!$C$8)*('Oculto EI'!BW10)) -> 136.50 | BY10: 45.00 | BZ10: 56.18 | CA10: 15.75 | CB10: 160.50 | CC10: 0.7 | CD10: 31.50 | CE10: 180.18 | CH10: 8 | CI10: 0.35 | CJ10: ='Regulares Ampliado EI'!$E$18*'Oculto EI'!CI10 -> 66.82 | CK10: ='Regulares Ampliado EI'!$E$9+('Regulares Ampliado EI'!$D$9*(1+'Regulares Ampliado EI'!$C$9))-((1+'Regulares Ampliado EI'!$C$9)*('Oculto EI'!CJ10)) -> 136.50 | CL10: 45.00 | CM10: 56.18 | CN10: 15.75 | CO10: 160.50 | CP10: 0.7 | CQ10: 31.50 | CR10: 180.18 | CW10: Años | CX10: 5 | DA10: =DA8 -> 2.0 | DB10: Tasa de inflación | DC10: =ValorPyF!G10 -> 5.0% | DD10: Tasa de interés anualizada | DE10: =ValorPyF!C20 -> 10.0% | DF10: Tasa de interés anualizada | DG10: =ValorPyF!G20 -> 10.0% | DH10: 0.30 | DI10: 0.60 | DJ10: 106.30 | DK10: 0.60 | DL10: 105.99 | DO10: C1 | DP10: =(DP17*((DP12*(1+DP14))+DP13))/(1+DP14) -> 100.0 | DQ10: =(DQ17*((DQ12*(1+DQ14))+DQ13))/(1+DQ14) -> 100.0 | DT10: 0.30 | DU10: 60.00 | DV10: 140.00 | DW10: 166.67 | DX10: 60.00 | DY10: 166.6666667 | DZ10: 30.00 | EA10: 100.0 | EB10: 100.00 | EC10: 30.0 | ED10: 30.0 | EE10: 100.0 | EF10: 100.00 | EG10: 30.0 | EH10: 0.30 | EI10: 60.00 | EJ10: 140.00 | EK10: 166.67 | EL10: 60.00 | EM10: 166.6666667
A11: 0.35 | B11: 71.40 | C11: 19.84 | D11: 30.00 | E11: 3.78 | F11: 10.50 | G11: 10.81 | H11: 170.00 | I11: 12.75 | J11: 59.50 | K11: 36.42 | L11: 100.00 | M11: 8.79 | N11: 35.00 | O11: 25.12 | P11: 35.00 | Q11: 23.62 | R11: 100.00 | S11: 8.79 | T11: 79.00 | U11: 19.78 | V11: 35.00 | W11: 25.12 | Y11: 9 | Z11: 0.40 | AA11: =('Cobb-Douglas EI'!$D$14)*Z11 -> 173.33 | AB11: ='Cobb-Douglas EI'!$D$7+('Cobb-Douglas EI'!$C$7*(1+'Cobb-Douglas EI'!$B$7)-(1+'Cobb-Douglas EI'!$B$7)*('Oculto EI'!AA11)) -> 390.00 | AC11: 260 | AD11: 104.00 | AE11: =$AC$27*'Oculto EI'!Z11 -> 104.00 | AF11: 260 | AG11: 0.84 | AH11: 218.40 | AI11: 337.72 | AK11: 9 | AL11: 0.40 | AM11: =('Cobb-Douglas Ampliado EI'!$D$18)*AL11 -> 533.33 | AN11: ='Cobb-Douglas Ampliado EI'!$E$8+('Cobb-Douglas Ampliado EI'!$D$8*(1+'Cobb-Douglas Ampliado EI'!$C$8))-((1+'Cobb-Douglas Ampliado EI'!$C$8)*('Oculto EI'!AM11)) -> 960.00 | AO11: 266.6666667 | AP11: 512.00 | AQ11: =$AO$27*'Oculto EI'!AL11 -> 106.67 | AR11: 1280 | AS11: 0.84 | AT11: 224.00 | AU11: 1,337.03 | AW11: 9 | AX11: 0.40 | AY11: =('Cobb-Douglas Ampliado EI'!$E$18)*AX11 -> 533.33 | AZ11: ='Cobb-Douglas Ampliado EI'!$E$9+('Cobb-Douglas Ampliado EI'!$D$9*(1+'Cobb-Douglas Ampliado EI'!$C$9))-((1+'Cobb-Douglas Ampliado EI'!$C$9)*('Oculto EI'!AY11)) -> 960.00 | BA11: 266.6666667 | BB11: 512.00 | BC11: =$BA$27*'Oculto EI'!AX11 -> 106.67 | BD11: 1280 | BE11: 0.84 | BF11: 224.00 | BG11: 1,337.03 | BI11: 9 | BJ11: 0.40 | BK11: ='Regulares EI'!$D$14*'Oculto EI'!BJ11 -> 76.36 | BL11: ='Regulares EI'!$D$7+('Regulares EI'!$C$7*(1+'Regulares EI'!$B$7))-((1+'Regulares EI'!$B$7)*('Oculto EI'!BK11)) -> 126.00 | BM11: 45.00 | BN11: 64.20 | BO11: 18.00 | BP11: 160.50 | BQ11: 0.8 | BR11: 36.00 | BS11: 172.34 | BU11: 9 | BV11: 0.40 | BW11: ='Regulares Ampliado EI'!$D$18*'Oculto EI'!BV11 -> 76.36 | BX11: ='Regulares Ampliado EI'!$E$8+('Regulares Ampliado EI'!$D$8*(1+'Regulares Ampliado EI'!$C$8))-((1+'Regulares Ampliado EI'!$C$8)*('Oculto EI'!BW11)) -> 126.00 | BY11: 45.00 | BZ11: 64.20 | CA11: 18.00 | CB11: 160.50 | CC11: 0.8 | CD11: 36.00 | CE11: 172.34 | CH11: 9 | CI11: 0.40 | CJ11: ='Regulares Ampliado EI'!$E$18*'Oculto EI'!CI11 -> 76.36 | CK11: ='Regulares Ampliado EI'!$E$9+('Regulares Ampliado EI'!$D$9*(1+'Regulares Ampliado EI'!$C$9))-((1+'Regulares Ampliado EI'!$C$9)*('Oculto EI'!CJ11)) -> 126.00 | CL11: 45.00 | CM11: 64.20 | CN11: 18.00 | CO11: 160.50 | CP11: 0.8 | CQ11: 36.00 | CR11: 172.34 | CW11: Valor Presente | CX11: =CX8/((1+CX9)^(CX10)) -> 745,765.10 | DB11: Tasa de interés real | DC11: =(DC9-DC10)/(1+DC10) -> 9.5% | DD11: Tasa de interés por periodo | DE11: =DE10/DE9 -> 0.8% | DF11: Tasa de interés por periodo | DG11: =DG10/DG9 -> 0.8% | DH11: 0.35 | DI11: 0.70 | DJ11: 107.35 | DK11: 0.70 | DL11: 106.98 | DO11: C2 | DP11: =DP18*((DP12*(1+DP14))+DP13) -> 100.0 | DQ11: =DQ18*((DQ12*(1+DQ14))+DQ13) -> 100.0 | DT11: 0.35 | DU11: 70.00 | DV11: 130.00 | DW11: 142.86 | DX11: 70.00 | DY11: 142.8571429 | DZ11: 35.00 | EA11: 100.0 | EB11: 100.00 | EC11: 35.0 | ED11: 35.0 | EE11: 100.0 | EF11: 100.00 | EG11: 35.0 | EH11: 0.35 | EI11: 70.00 | EJ11: 130.00 | EK11: 142.86 | EL11: 70.00 | EM11: 142.8571429
A12: 0.40 | B12: 81.60 | C12: 21.79 | D12: 30.00 | E12: 4.33 | F12: 12.00 | G12: 10.81 | H12: 170.00 | I12: 14.57 | J12: 68.00 | K12: 36.42 | L12: 100.00 | M12: 10.05 | N12: 40.00 | O12: 25.12 | P12: 40.00 | Q12: 23.62 | R12: 100.00 | S12: 10.05 | T12: 86.00 | U12: 21.06 | V12: 40.00 | W12: 25.12 | Y12: 10 | Z12: 0.45 | AA12: =('Cobb-Douglas EI'!$D$14)*Z12 -> 195.00 | AB12: ='Cobb-Douglas EI'!$D$7+('Cobb-Douglas EI'!$C$7*(1+'Cobb-Douglas EI'!$B$7)-(1+'Cobb-Douglas EI'!$B$7)*('Oculto EI'!AA12)) -> 357.50 | AC12: 260 | AD12: 117.00 | AE12: =$AC$27*'Oculto EI'!Z12 -> 117.00 | AF12: 260 | AG12: 0.92 | AH12: 239.20 | AI12: 294.64 | AK12: 10 | AL12: 0.45 | AM12: =('Cobb-Douglas Ampliado EI'!$D$18)*AL12 -> 600.00 | AN12: ='Cobb-Douglas Ampliado EI'!$E$8+('Cobb-Douglas Ampliado EI'!$D$8*(1+'Cobb-Douglas Ampliado EI'!$C$8))-((1+'Cobb-Douglas Ampliado EI'!$C$8)*('Oculto EI'!AM12)) -> 880.00 | AO12: 266.6666667 | AP12: 576.00 | AQ12: =$AO$27*'Oculto EI'!AL12 -> 120.00 | AR12: 1280 | AS12: 0.92 | AT12: 245.33 | AU12: 1,306.96 | AW12: 10 | AX12: 0.45 | AY12: =('Cobb-Douglas Ampliado EI'!$E$18)*AX12 -> 600.00 | AZ12: ='Cobb-Douglas Ampliado EI'!$E$9+('Cobb-Douglas Ampliado EI'!$D$9*(1+'Cobb-Douglas Ampliado EI'!$C$9))-((1+'Cobb-Douglas Ampliado EI'!$C$9)*('Oculto EI'!AY12)) -> 880.00 | BA12: 266.6666667 | BB12: 576.00 | BC12: =$BA$27*'Oculto EI'!AX12 -> 120.00 | BD12: 1280 | BE12: 0.92 | BF12: 245.33 | BG12: 1,306.96 | BI12: 10 | BJ12: 0.45 | BK12: ='Regulares EI'!$D$14*'Oculto EI'!BJ12 -> 85.91 | BL12: ='Regulares EI'!$D$7+('Regulares EI'!$C$7*(1+'Regulares EI'!$B$7))-((1+'Regulares EI'!$B$7)*('Oculto EI'!BK12)) -> 115.50 | BM12: 45.00 | BN12: 72.23 | BO12: 20.25 | BP12: 160.50 | BQ12: 0.9 | BR12: 40.50 | BS12: 165.89 | BU12: 10 | BV12: 0.45 | BW12: ='Regulares Ampliado EI'!$D$18*'Oculto EI'!BV12 -> 85.91 | BX12: ='Regulares Ampliado EI'!$E$8+('Regulares Ampliado EI'!$D$8*(1+'Regulares Ampliado EI'!$C$8))-((1+'Regulares Ampliado EI'!$C$8)*('Oculto EI'!BW12)) -> 115.50 | BY12: 45.00 | BZ12: 72.23 | CA12: 20.25 | CB12: 160.50 | CC12: 0.9 | CD12: 40.50 | CE12: 165.89 | CH12: 10 | CI12: 0.45 | CJ12: ='Regulares Ampliado EI'!$E$18*'Oculto EI'!CI12 -> 85.91 | CK12: ='Regulares Ampliado EI'!$E$9+('Regulares Ampliado EI'!$D$9*(1+'Regulares Ampliado EI'!$C$9))-((1+'Regulares Ampliado EI'!$C$9)*('Oculto EI'!CJ12)) -> 115.50 | CL12: 45.00 | CM12: 72.23 | CN12: 20.25 | CO12: 160.50 | CP12: 0.9 | CQ12: 40.50 | CR12: 165.89 | CZ12: CI | DB12: CI | DF12: Tasa de inflación anual | DG12: =ValorPyF!G22 -> 5.0% | DH12: 0.40 | DI12: 0.80 | DJ12: 108.40 | DK12: 0.80 | DL12: 107.98 | DO12: m1 | DP12: =MercadoActivo!$C$14 -> 100.0 | DQ12: =DP12 -> 100.0 | DT12: 0.40 | DU12: 80.00 | DV12: 120.00 | DW12: 125.00 | DX12: 80.00 | DY12: 125 | DZ12: 40.00 | EA12: 100.0 | EB12: 100.00 | EC12: 40.0 | ED12: 40.0 | EE12: 100.0 | EF12: 100.00 | EG12: 40.0 | EH12: 0.40 | EI12: 80.00 | EJ12: 120.00 | EK12: 125.00 | EL12: 80.00 | EM12: 125
A13: 0.45 | B13: 91.80 | C13: 23.66 | D13: 30.00 | E13: 4.87 | F13: 13.50 | G13: 10.81 | H13: 170.00 | I13: 16.39 | J13: 76.50 | K13: 36.42 | L13: 100.00 | M13: 11.30 | N13: 45.00 | O13: 25.12 | P13: 45.00 | Q13: 23.62 | R13: 100.00 | S13: 11.30 | T13: 93.00 | U13: 22.34 | V13: 45.00 | W13: 25.12 | Y13: 11 | Z13: 0.50 | AA13: =('Cobb-Douglas EI'!$D$14)*Z13 -> 216.67 | AB13: ='Cobb-Douglas EI'!$D$7+('Cobb-Douglas EI'!$C$7*(1+'Cobb-Douglas EI'!$B$7)-(1+'Cobb-Douglas EI'!$B$7)*('Oculto EI'!AA13)) -> 325.00 | AC13: 260 | AD13: 130.00 | AE13: =$AC$27*'Oculto EI'!Z13 -> 130.00 | AF13: 260 | AG13: 1 | AH13: =$AC$27*AG13 -> 260.00 | AI13: 260.00 | AK13: 11 | AL13: 0.50 | AM13: =('Cobb-Douglas Ampliado EI'!$D$18)*AL13 -> 666.67 | AN13: ='Cobb-Douglas Ampliado EI'!$E$8+('Cobb-Douglas Ampliado EI'!$D$8*(1+'Cobb-Douglas Ampliado EI'!$C$8))-((1+'Cobb-Douglas Ampliado EI'!$C$8)*('Oculto EI'!AM13)) -> 800.00 | AO13: 266.6666667 | AP13: 640.00 | AQ13: =$AO$27*'Oculto EI'!AL13 -> 133.33 | AR13: 1280 | AS13: 1 | AT13: 266.67 | AU13: 1,280.00 | AW13: 11 | AX13: 0.50 | AY13: =('Cobb-Douglas Ampliado EI'!$E$18)*AX13 -> 666.67 | AZ13: ='Cobb-Douglas Ampliado EI'!$E$9+('Cobb-Douglas Ampliado EI'!$D$9*(1+'Cobb-Douglas Ampliado EI'!$C$9))-((1+'Cobb-Douglas Ampliado EI'!$C$9)*('Oculto EI'!AY13)) -> 800.00 | BA13: 266.6666667 | BB13: 640.00 | BC13: =$BA$27*'Oculto EI'!AX13 -> 133.33 | BD13: 1280 | BE13: 1 | BF13: 266.67 | BG13: 1,280.00 | BI13: 11 | BJ13: 0.50 | BK13: ='Regulares EI'!$D$14*'Oculto EI'!BJ13 -> 95.45 | BL13: ='Regulares EI'!$D$7+('Regulares EI'!$C$7*(1+'Regulares EI'!$B$7))-((1+'Regulares EI'!$B$7)*('Oculto EI'!BK13)) -> 105.00 | BM13: 45.00 | BN13: 80.25 | BO13: 22.50 | BP13: 160.50 | BQ13: 1 | BR13: =BL28 -> 45.00 | BS13: 160.50 | BU13: 11 | BV13: 0.50 | BW13: ='Regulares Ampliado EI'!$D$18*'Oculto EI'!BV13 -> 95.45 | BX13: ='Regulares Ampliado EI'!$E$8+('Regulares Ampliado EI'!$D$8*(1+'Regulares Ampliado EI'!$C$8))-((1+'Regulares Ampliado EI'!$C$8)*('Oculto EI'!BW13)) -> 105.00 | BY13: 45.00 | BZ13: 80.25 | CA13: 22.50 | CB13: 160.50 | CC13: 1 | CD13: 45.00 | CE13: 160.50 | CH13: 11 | CI13: 0.50 | CJ13: ='Regulares Ampliado EI'!$E$18*'Oculto EI'!CI13 -> 95.45 | CK13: ='Regulares Ampliado EI'!$E$9+('Regulares Ampliado EI'!$D$9*(1+'Regulares Ampliado EI'!$C$9))-((1+'Regulares Ampliado EI'!$C$9)*('Oculto EI'!CJ13)) -> 105.00 | CL13: 45.00 | CM13: 80.25 | CN13: 22.50 | CO13: 160.50 | CP13: 1 | CQ13: 45.00 | CR13: 160.50 | CW13: CAPITALIZACIONES | CZ13: Capital inicial | DA13: =DA14/((1+((DA16-DA34)/(1+DA34)))^DA15) -> 82.6 | DB13: Capital inicial | DC13: =DC14/((1+((DC16-DC17)/(1+DC17)))^DC15) -> 83.4 | DF13: Tasa de interés real anual | DG13: =(DG10-DG12)/(1+DG12) -> 4.8% | DH13: 0.45 | DI13: 0.90 | DJ13: 109.45 | DK13: 0.90 | DL13: 108.98 | DO13: m2 | DP13: =MercadoActivo!$C$15 -> 100.0 | DQ13: =DP13 -> 100.0 | DT13: 0.45 | DU13: 90.00 | DV13: 110.00 | DW13: 111.11 | DX13: 90.00 | DY13: 111.1111111 | DZ13: 45.00 | EA13: 100.0 | EB13: 100.00 | EC13: 45.0 | ED13: 45.0 | EE13: 100.0 | EF13: 100.00 | EG13: 45.0 | EH13: 0.45 | EI13: 90.00 | EJ13: 110.00 | EK13: 111.11 | EL13: 90.00 | EM13: 111.1111111
A14: 0.50 | B14: 102.00 | C14: 25.47 | D14: 30.00 | E14: 5.41 | F14: 15.00 | G14: 10.81 | H14: 170.00 | I14: 18.21 | J14: 85.00 | K14: 36.42 | L14: 100.00 | M14: 12.56 | N14: 50.00 | O14: 25.12 | P14: 50.00 | Q14: 23.62 | R14: 100.00 | S14: 12.56 | T14: 100.00 | U14: 23.62 | V14: 50.00 | W14: 25.12 | Y14: 12 | Z14: 0.55 | AA14: =('Cobb-Douglas EI'!$D$14)*Z14 -> 238.33 | AB14: ='Cobb-Douglas EI'!$D$7+('Cobb-Douglas EI'!$C$7*(1+'Cobb-Douglas EI'!$B$7)-(1+'Cobb-Douglas EI'!$B$7)*('Oculto EI'!AA14)) -> 292.50 | AC14: 260 | AD14: 143.00 | AE14: =$AC$27*'Oculto EI'!Z14 -> 143.00 | AF14: 260 | AG14: 1.08 | AH14: =$AC$27*AG14 -> 280.80 | AI14: 231.65 | AK14: 12 | AL14: 0.55 | AM14: =('Cobb-Douglas Ampliado EI'!$D$18)*AL14 -> 733.33 | AN14: ='Cobb-Douglas Ampliado EI'!$E$8+('Cobb-Douglas Ampliado EI'!$D$8*(1+'Cobb-Douglas Ampliado EI'!$C$8))-((1+'Cobb-Douglas Ampliado EI'!$C$8)*('Oculto EI'!AM14)) -> 720.00 | AO14: 266.6666667 | AP14: 704.00 | AQ14: =$AO$27*'Oculto EI'!AL14 -> 146.67 | AR14: 1280 | AS14: 1.08 | AT14: =$AO$27*AS14 -> 288.00 | AU14: =($AP$28/(AT14^($AO$26)))^(1/$AP$26) -> 1,255.61 | AW14: 12 | AX14: 0.55 | AY14: =('Cobb-Douglas Ampliado EI'!$E$18)*AX14 -> 733.33 | AZ14: ='Cobb-Douglas Ampliado EI'!$E$9+('Cobb-Douglas Ampliado EI'!$D$9*(1+'Cobb-Douglas Ampliado EI'!$C$9))-((1+'Cobb-Douglas Ampliado EI'!$C$9)*('Oculto EI'!AY14)) -> 720.00 | BA14: 266.6666667 | BB14: 704.00 | BC14: =$BA$27*'Oculto EI'!AX14 -> 146.67 | BD14: 1280 | BE14: 1.08 | BF14: =$BA$27*BE14 -> 288.00 | BG14: =($BB$28/(BF14^($BA$26)))^(1/$BB$26) -> 1,255.61 | BI14: 12 | BJ14: 0.55 | BK14: ='Regulares EI'!$D$14*'Oculto EI'!BJ14 -> 105.00 | BL14: ='Regulares EI'!$D$7+('Regulares EI'!$C$7*(1+'Regulares EI'!$B$7))-((1+'Regulares EI'!$B$7)*('Oculto EI'!BK14)) -> 94.50 | BM14: 45.00 | BN14: 88.28 | BO14: 24.75 | BP14: 160.50 | BQ14: =BQ13+$BQ$25 -> 1.1 | BR14: =$BR$13*BQ14 -> 49.50 | BS14: =($BM$26+($BM$30*BR14)-($BM$28*$BM$30))/(BR14-$BM$28) -> 155.92 | BU14: 12 | BV14: 0.55 | BW14: ='Regulares Ampliado EI'!$D$18*'Oculto EI'!BV14 -> 105.00 | BX14: ='Regulares Ampliado EI'!$E$8+('Regulares Ampliado EI'!$D$8*(1+'Regulares Ampliado EI'!$C$8))-((1+'Regulares Ampliado EI'!$C$8)*('Oculto EI'!BW14)) -> 94.50 | BY14: 45.00 | BZ14: 88.28 | CA14: 24.75 | CB14: 160.50 | CC14: =CC13+$BQ$25 -> 1.1 | CD14: 49.50 | CE14: =($BY$26+($BY$30*CD14)-($BY$28*$BY$30))/(CD14-$BY$28) -> 155.92 | CH14: 12 | CI14: 0.55 | CJ14: ='Regulares Ampliado EI'!$E$18*'Oculto EI'!CI14 -> 105.00 | CK14: ='Regulares Ampliado EI'!$E$9+('Regulares Ampliado EI'!$D$9*(1+'Regulares Ampliado EI'!$C$9))-((1+'Regulares Ampliado EI'!$C$9)*('Oculto EI'!CJ14)) -> 94.50 | CL14: 45.00 | CM14: 88.28 | CN14: 24.75 | CO14: 160.50 | CP14: =CP13+$BQ$25 -> 1.1 | CQ14: 49.50 | CR14: =($CL$26+($CL$30*CQ14)-($CL$28*$CL$30))/(CQ14-$CL$28) -> 155.92 | CW14: Capital Inicial | CX14: 1,000.00 | CZ14: Capital final | DA14: =ValorPyF!C7 -> 100.0 | DB14: Capital final | DC14: =ValorPyF!G7 -> 100.0 | DF14: Tasa de interés real por periodo | DG14: =DG13/DG9 -> 0.40% | DH14: 0.50 | DI14: 1.00 | DJ14: 110.50 | DK14: 1.00 | DL14: 109.98 | DO14: r | DP14: =MercadoActivo!$C$16 -> 0.0 | DQ14: =MercadoActivo!D16 -> 0.0 | DT14: 0.50 | DU14: 100.00 | DV14: 100.00 | DW14: 100.00 | DX14: 100.00 | DY14: 100 | DZ14: 50.00 | EA14: 100.0 | EB14: 100.00 | EC14: 50.0 | ED14: 50.0 | EE14: 100.0 | EF14: 100.00 | EG14: 50.0 | EH14: 0.50 | EI14: 100.00 | EJ14: 100.00 | EK14: 100.00 | EL14: 100.00 | EM14: 100
A15: 0.55 | B15: 112.20 | C15: 27.23 | D15: 30.00 | E15: 5.95 | F15: 16.50 | G15: 10.81 | H15: 170.00 | I15: 20.03 | J15: 93.50 | K15: 36.42 | L15: 100.00 | M15: 13.82 | N15: 55.00 | O15: 25.12 | P15: 55.00 | Q15: 23.62 | R15: 100.00 | S15: 13.82 | T15: 107.00 | U15: 24.90 | V15: 55.00 | W15: 25.12 | Y15: 13 | Z15: 0.60 | AA15: =('Cobb-Douglas EI'!$D$14)*Z15 -> 260.00 | AB15: ='Cobb-Douglas EI'!$D$7+('Cobb-Douglas EI'!$C$7*(1+'Cobb-Douglas EI'!$B$7)-(1+'Cobb-Douglas EI'!$B$7)*('Oculto EI'!AA15)) -> 260.00 | AC15: 260 | AD15: 156.00 | AE15: =$AC$27*'Oculto EI'!Z15 -> 156.00 | AF15: 260 | AG15: 1.16 | AH15: 301.60 | AI15: 208.11 | AK15: 13 | AL15: 0.60 | AM15: =('Cobb-Douglas Ampliado EI'!$D$18)*AL15 -> 800.00 | AN15: ='Cobb-Douglas Ampliado EI'!$E$8+('Cobb-Douglas Ampliado EI'!$D$8*(1+'Cobb-Douglas Ampliado EI'!$C$8))-((1+'Cobb-Douglas Ampliado EI'!$C$8)*('Oculto EI'!AM15)) -> 640.00 | AO15: 266.6666667 | AP15: 768.00 | AQ15: =$AO$27*'Oculto EI'!AL15 -> 160.00 | AR15: 1280 | AS15: 1.16 | AT15: 309.33 | AU15: 1,233.38 | AW15: 13 | AX15: 0.60 | AY15: =('Cobb-Douglas Ampliado EI'!$E$18)*AX15 -> 800.00 | AZ15: ='Cobb-Douglas Ampliado EI'!$E$9+('Cobb-Douglas Ampliado EI'!$D$9*(1+'Cobb-Douglas Ampliado EI'!$C$9))-((1+'Cobb-Douglas Ampliado EI'!$C$9)*('Oculto EI'!AY15)) -> 640.00 | BA15: 266.6666667 | BB15: 768.00 | BC15: =$BA$27*'Oculto EI'!AX15 -> 160.00 | BD15: 1280 | BE15: 1.16 | BF15: 309.33 | BG15: 1,233.38 | BI15: 13 | BJ15: 0.60 | BK15: ='Regulares EI'!$D$14*'Oculto EI'!BJ15 -> 114.55 | BL15: ='Regulares EI'!$D$7+('Regulares EI'!$C$7*(1+'Regulares EI'!$B$7))-((1+'Regulares EI'!$B$7)*('Oculto EI'!BK15)) -> 84.00 | BM15: 45.00 | BN15: 96.30 | BO15: 27.00 | BP15: 160.50 | BQ15: =BQ14+$BQ$25 -> 1.2 | BR15: =$BR$13*BQ15 -> 54.00 | BS15: 151.99 | BU15: 13 | BV15: 0.60 | BW15: ='Regulares Ampliado EI'!$D$18*'Oculto EI'!BV15 -> 114.55 | BX15: ='Regulares Ampliado EI'!$E$8+('Regulares Ampliado EI'!$D$8*(1+'Regulares Ampliado EI'!$C$8))-((1+'Regulares Ampliado EI'!$C$8)*('Oculto EI'!BW15)) -> 84.00 | BY15: 45.00 | BZ15: 96.30 | CA15: 27.00 | CB15: 160.50 | CC15: =CC14+$BQ$25 -> 1.2 | CD15: 54.00 | CE15: 151.99 | CH15: 13 | CI15: 0.60 | CJ15: ='Regulares Ampliado EI'!$E$18*'Oculto EI'!CI15 -> 114.55 | CK15: ='Regulares Ampliado EI'!$E$9+('Regulares Ampliado EI'!$D$9*(1+'Regulares Ampliado EI'!$C$9))-((1+'Regulares Ampliado EI'!$C$9)*('Oculto EI'!CJ15)) -> 84.00 | CL15: 45.00 | CM15: 96.30 | CN15: 27.00 | CO15: 160.50 | CP15: =CP14+$BQ$25 -> 1.2 | CQ15: 54.00 | CR15: 151.99 | CW15: Tasa de Interés Anual | CX15: 10% | CZ15: Años | DA15: =ValorPyF!C8 -> 2.0 | DB15: Años | DC15: =ValorPyF!G8 -> 2.0 | DD15: CI | DF15: CI | DH15: 0.55 | DI15: 1.10 | DJ15: 111.55 | DK15: 1.10 | DL15: 110.98 | DT15: 0.55 | DU15: 110.00 | DV15: 90.00 | DW15: 90.91 | DX15: 110.00 | DY15: 90.90909091 | DZ15: 55.00 | EA15: 100.0 | EB15: 100.00 | EC15: 55.0 | ED15: 55.0 | EE15: 100.0 | EF15: 100.00 | EG15: 55.0 | EH15: 0.55 | EI15: 110.00 | EJ15: 90.00 | EK15: 90.91 | EL15: 110.00 | EM15: 90.90909091
A16: 0.60 | B16: 122.40 | C16: 28.94 | D16: 30.00 | E16: 6.49 | F16: 18.00 | G16: 10.81 | H16: 170.00 | I16: 21.85 | J16: 102.00 | K16: 36.42 | L16: 100.00 | M16: 15.07 | N16: 60.00 | O16: 25.12 | P16: 60.00 | Q16: 23.62 | R16: 100.00 | S16: 15.07 | T16: 114.00 | U16: 26.18 | V16: 60.00 | W16: 25.12 | Y16: 14 | Z16: 0.65 | AA16: =('Cobb-Douglas EI'!$D$14)*Z16 -> 281.67 | AB16: ='Cobb-Douglas EI'!$D$7+('Cobb-Douglas EI'!$C$7*(1+'Cobb-Douglas EI'!$B$7)-(1+'Cobb-Douglas EI'!$B$7)*('Oculto EI'!AA16)) -> 227.50 | AC16: 260 | AD16: 169.00 | AE16: =$AC$27*'Oculto EI'!Z16 -> 169.00 | AF16: 260 | AG16: 1.24 | AH16: 322.40 | AI16: 188.30 | AK16: 14 | AL16: 0.65 | AM16: =('Cobb-Douglas Ampliado EI'!$D$18)*AL16 -> 866.67 | AN16: ='Cobb-Douglas Ampliado EI'!$E$8+('Cobb-Douglas Ampliado EI'!$D$8*(1+'Cobb-Douglas Ampliado EI'!$C$8))-((1+'Cobb-Douglas Ampliado EI'!$C$8)*('Oculto EI'!AM16)) -> 560.00 | AO16: 266.6666667 | AP16: 832.00 | AQ16: =$AO$27*'Oculto EI'!AL16 -> 173.33 | AR16: 1280 | AS16: 1.24 | AT16: 330.67 | AU16: 1,212.98 | AW16: 14 | AX16: 0.65 | AY16: =('Cobb-Douglas Ampliado EI'!$E$18)*AX16 -> 866.67 | AZ16: ='Cobb-Douglas Ampliado EI'!$E$9+('Cobb-Douglas Ampliado EI'!$D$9*(1+'Cobb-Douglas Ampliado EI'!$C$9))-((1+'Cobb-Douglas Ampliado EI'!$C$9)*('Oculto EI'!AY16)) -> 560.00 | BA16: 266.6666667 | BB16: 832.00 | BC16: =$BA$27*'Oculto EI'!AX16 -> 173.33 | BD16: 1280 | BE16: 1.24 | BF16: 330.67 | BG16: 1,212.98 | BI16: 14 | BJ16: 0.65 | BK16: ='Regulares EI'!$D$14*'Oculto EI'!BJ16 -> 124.09 | BL16: ='Regulares EI'!$D$7+('Regulares EI'!$C$7*(1+'Regulares EI'!$B$7))-((1+'Regulares EI'!$B$7)*('Oculto EI'!BK16)) -> 73.50 | BM16: 45.00 | BN16: 104.33 | BO16: 29.25 | BP16: 160.50 | BQ16: 1.3 | BR16: 58.50 | BS16: 148.58 | BU16: 14 | BV16: 0.65 | BW16: ='Regulares Ampliado EI'!$D$18*'Oculto EI'!BV16 -> 124.09 | BX16: ='Regulares Ampliado EI'!$E$8+('Regulares Ampliado EI'!$D$8*(1+'Regulares Ampliado EI'!$C$8))-((1+'Regulares Ampliado EI'!$C$8)*('Oculto EI'!BW16)) -> 73.50 | BY16: 45.00 | BZ16: 104.33 | CA16: 29.25 | CB16: 160.50 | CC16: 1.3 | CD16: 58.50 | CE16: 148.58 | CH16: 14 | CI16: 0.65 | CJ16: ='Regulares Ampliado EI'!$E$18*'Oculto EI'!CI16 -> 124.09 | CK16: ='Regulares Ampliado EI'!$E$9+('Regulares Ampliado EI'!$D$9*(1+'Regulares Ampliado EI'!$C$9))-((1+'Regulares Ampliado EI'!$C$9)*('Oculto EI'!CJ16)) -> 73.50 | CL16: 45.00 | CM16: 104.33 | CN16: 29.25 | CO16: 160.50 | CP16: 1.3 | CQ16: 58.50 | CR16: 148.58 | CW16: Capitalizaciones al año | CX16: 6 | CZ16: Tasa de interés | DA16: =ValorPyF!C9 -> 0.1 | DB16: Tasa de interés | DC16: =ValorPyF!G9 -> 15.0% | DD16: Capital inicial | DE16: =DE17/((1+((DE21-DE46)/(1+DE46)))^(DE18*DE19)) -> 122.9 | DF16: Capital inicial | DG16: =DG17/((1+(DG24))^(DG18*DG19)) -> 136.4 | DH16: 0.60 | DI16: 1.20 | DJ16: 112.60 | DK16: 1.20 | DL16: 111.97 | DO16: Función de utilidad | DP16: Caso 1 | DQ16: Caso 2 | DT16: 0.60 | DU16: 120.00 | DV16: 80.00 | DW16: 83.33 | DX16: 120.00 | DY16: 83.33333333 | DZ16: 60.00 | EA16: 100.0 | EB16: 100.00 | EC16: 60.0 | ED16: 60.0 | EE16: 100.0 | EF16: 100.00 | EG16: 60.0 | EH16: 0.60 | EI16: 120.00 | EJ16: 80.00 | EK16: 83.33 | EL16: 120.00 | EM16: 83.33333333
A17: 0.65 | B17: 132.60 | C17: 30.60 | D17: 30.00 | E17: 7.03 | F17: 19.50 | G17: 10.81 | H17: 170.00 | I17: 23.67 | J17: 110.50 | K17: 36.42 | L17: 100.00 | M17: 16.33 | N17: 65.00 | O17: 25.12 | P17: 65.00 | Q17: 23.62 | R17: 100.00 | S17: 16.33 | T17: 121.00 | U17: 27.46 | V17: 65.00 | W17: 25.12 | Y17: 15 | Z17: 0.70 | AA17: =('Cobb-Douglas EI'!$D$14)*Z17 -> 303.33 | AB17: ='Cobb-Douglas EI'!$D$7+('Cobb-Douglas EI'!$C$7*(1+'Cobb-Douglas EI'!$B$7)-(1+'Cobb-Douglas EI'!$B$7)*('Oculto EI'!AA17)) -> 195.00 | AC17: 260 | AD17: 182.00 | AE17: =$AC$27*'Oculto EI'!Z17 -> 182.00 | AF17: 260 | AG17: 1.32 | AH17: 343.20 | AI17: 171.44 | AK17: 15 | AL17: 0.70 | AM17: =('Cobb-Douglas Ampliado EI'!$D$18)*AL17 -> 933.33 | AN17: ='Cobb-Douglas Ampliado EI'!$E$8+('Cobb-Douglas Ampliado EI'!$D$8*(1+'Cobb-Douglas Ampliado EI'!$C$8))-((1+'Cobb-Douglas Ampliado EI'!$C$8)*('Oculto EI'!AM17)) -> 480.00 | AO17: 266.6666667 | AP17: 896.00 | AQ17: =$AO$27*'Oculto EI'!AL17 -> 186.67 | AR17: 1280 | AS17: 1.32 | AT17: 352.00 | AU17: 1,194.17 | AW17: 15 | AX17: 0.70 | AY17: =('Cobb-Douglas Ampliado EI'!$E$18)*AX17 -> 933.33 | AZ17: ='Cobb-Douglas Ampliado EI'!$E$9+('Cobb-Douglas Ampliado EI'!$D$9*(1+'Cobb-Douglas Ampliado EI'!$C$9))-((1+'Cobb-Douglas Ampliado EI'!$C$9)*('Oculto EI'!AY17)) -> 480.00 | BA17: 266.6666667 | BB17: 896.00 | BC17: =$BA$27*'Oculto EI'!AX17 -> 186.67 | BD17: 1280 | BE17: 1.32 | BF17: 352.00 | BG17: 1,194.17 | BI17: 15 | BJ17: 0.70 | BK17: ='Regulares EI'!$D$14*'Oculto EI'!BJ17 -> 133.64 | BL17: ='Regulares EI'!$D$7+('Regulares EI'!$C$7*(1+'Regulares EI'!$B$7))-((1+'Regulares EI'!$B$7)*('Oculto EI'!BK17)) -> 63.00 | BM17: 45.00 | BN17: 112.35 | BO17: 31.50 | BP17: 160.50 | BQ17: 1.4 | BR17: 63.00 | BS17: 145.58 | BU17: 15 | BV17: 0.70 | BW17: ='Regulares Ampliado EI'!$D$18*'Oculto EI'!BV17 -> 133.64 | BX17: ='Regulares Ampliado EI'!$E$8+('Regulares Ampliado EI'!$D$8*(1+'Regulares Ampliado EI'!$C$8))-((1+'Regulares Ampliado EI'!$C$8)*('Oculto EI'!BW17)) -> 63.00 | BY17: 45.00 | BZ17: 112.35 | CA17: 31.50 | CB17: 160.50 | CC17: 1.4 | CD17: 63.00 | CE17: 145.58 | CH17: 15 | CI17: 0.70 | CJ17: ='Regulares Ampliado EI'!$E$18*'Oculto EI'!CI17 -> 133.64 | CK17: ='Regulares Ampliado EI'!$E$9+('Regulares Ampliado EI'!$D$9*(1+'Regulares Ampliado EI'!$C$9))-((1+'Regulares Ampliado EI'!$C$9)*('Oculto EI'!CJ17)) -> 63.00 | CL17: 45.00 | CM17: 112.35 | CN17: 31.50 | CO17: 160.50 | CP17: 1.4 | CQ17: 63.00 | CR17: 145.58 | CW17: Años | CX17: 20 | DB17: Tasa de inflación | DC17: =ValorPyF!G10 -> 5.0% | DD17: Capital final | DE17: =ValorPyF!C17 -> 150.0 | DF17: Capital final | DG17: =ValorPyF!G17 -> 150.0 | DH17: 0.65 | DI17: 1.30 | DJ17: 113.65 | DK17: 1.30 | DL17: 112.97 | DO17: a | DP17: =MercadoActivo!C19 -> 0.5 | DQ17: =DP17 -> 0.5 | DT17: 0.65 | DU17: 130.00 | DV17: 70.00 | DW17: 76.92 | DX17: 130.00 | DY17: 76.92307692 | DZ17: 65.00 | EA17: 100.0 | EB17: 100.00 | EC17: 65.0 | ED17: 65.0 | EE17: 100.0 | EF17: 100.00 | EG17: 65.0 | EH17: 0.65 | EI17: 130.00 | EJ17: 70.00 | EK17: 76.92 | EL17: 130.00 | EM17: 76.92307692
A18: 0.70 | B18: 142.80 | C18: 32.23 | D18: 30.00 | E18: 7.57 | F18: 21.00 | G18: 10.81 | H18: 170.00 | I18: 25.49 | J18: 119.00 | K18: 36.42 | L18: 100.00 | M18: 17.58 | N18: 70.00 | O18: 25.12 | P18: 70.00 | Q18: 23.62 | R18: 100.00 | S18: 17.58 | T18: 128.00 | U18: 28.74 | V18: 70.00 | W18: 25.12 | Y18: 16 | Z18: 0.75 | AA18: =('Cobb-Douglas EI'!$D$14)*Z18 -> 325.00 | AB18: ='Cobb-Douglas EI'!$D$7+('Cobb-Douglas EI'!$C$7*(1+'Cobb-Douglas EI'!$B$7)-(1+'Cobb-Douglas EI'!$B$7)*('Oculto EI'!AA18)) -> 162.50 | AC18: 260 | AD18: 195.00 | AE18: =$AC$27*'Oculto EI'!Z18 -> 195.00 | AF18: 260 | AG18: 1.4 | AH18: 364.00 | AI18: 156.96 | AK18: 16 | AL18: 0.75 | AM18: =('Cobb-Douglas Ampliado EI'!$D$18)*AL18 -> 1,000.00 | AN18: ='Cobb-Douglas Ampliado EI'!$E$8+('Cobb-Douglas Ampliado EI'!$D$8*(1+'Cobb-Douglas Ampliado EI'!$C$8))-((1+'Cobb-Douglas Ampliado EI'!$C$8)*('Oculto EI'!AM18)) -> 400.00 | AO18: 266.6666667 | AP18: 960.00 | AQ18: =$AO$27*'Oculto EI'!AL18 -> 200.00 | AR18: 1280 | AS18: 1.4 | AT18: 373.33 | AU18: 1,176.73 | AW18: 16 | AX18: 0.75 | AY18: =('Cobb-Douglas Ampliado EI'!$E$18)*AX18 -> 1,000.00 | AZ18: ='Cobb-Douglas Ampliado EI'!$E$9+('Cobb-Douglas Ampliado EI'!$D$9*(1+'Cobb-Douglas Ampliado EI'!$C$9))-((1+'Cobb-Douglas Ampliado EI'!$C$9)*('Oculto EI'!AY18)) -> 400.00 | BA18: 266.6666667 | BB18: 960.00 | BC18: =$BA$27*'Oculto EI'!AX18 -> 200.00 | BD18: 1280 | BE18: 1.4 | BF18: 373.33 | BG18: 1,176.73 | BI18: 16 | BJ18: 0.75 | BK18: ='Regulares EI'!$D$14*'Oculto EI'!BJ18 -> 143.18 | BL18: ='Regulares EI'!$D$7+('Regulares EI'!$C$7*(1+'Regulares EI'!$B$7))-((1+'Regulares EI'!$B$7)*('Oculto EI'!BK18)) -> 52.50 | BM18: 45.00 | BN18: 120.38 | BO18: 33.75 | BP18: 160.50 | BQ18: 1.5 | BR18: 67.50 | BS18: 142.94 | BU18: 16 | BV18: 0.75 | BW18: ='Regulares Ampliado EI'!$D$18*'Oculto EI'!BV18 -> 143.18 | BX18: ='Regulares Ampliado EI'!$E$8+('Regulares Ampliado EI'!$D$8*(1+'Regulares Ampliado EI'!$C$8))-((1+'Regulares Ampliado EI'!$C$8)*('Oculto EI'!BW18)) -> 52.50 | BY18: 45.00 | BZ18: 120.38 | CA18: 33.75 | CB18: 160.50 | CC18: 1.5 | CD18: 67.50 | CE18: 142.94 | CH18: 16 | CI18: 0.75 | CJ18: ='Regulares Ampliado EI'!$E$18*'Oculto EI'!CI18 -> 143.18 | CK18: ='Regulares Ampliado EI'!$E$9+('Regulares Ampliado EI'!$D$9*(1+'Regulares Ampliado EI'!$C$9))-((1+'Regulares Ampliado EI'!$C$9)*('Oculto EI'!CJ18)) -> 52.50 | CL18: 45.00 | CM18: 120.38 | CN18: 33.75 | CO18: 160.50 | CP18: 1.5 | CQ18: 67.50 | CR18: 142.94 | CW18: Valor Futuro | CX18: =CX14*((1+(CX15/CX16))^(CX17*CX16)) -> 7,268.25 | DB18: Tasa de interés real | DC18: =(DC16-DC17)/(1+DC17) -> 9.5% | DD18: Años | DE18: =ValorPyF!C18 -> 2.0 | DF18: Años | DG18: =ValorPyF!G18 -> 2.0 | DH18: 0.70 | DI18: 1.40 | DJ18: 114.70 | DK18: 1.40 | DL18: 113.97 | DO18: 1-a | DP18: =1-DP17 -> 0.5 | DQ18: =1-DQ17 -> 0.5 | DT18: 0.70 | DU18: 140.00 | DV18: 60.00 | DW18: 71.43 | DX18: 140.00 | DY18: 71.42857143 | DZ18: 70.00 | EA18: 100.0 | EB18: 100.00 | EC18: 70.0 | ED18: 70.0 | EE18: 100.0 | EF18: 100.00 | EG18: 70.0 | EH18: 0.70 | EI18: 140.00 | EJ18: 60.00 | EK18: 71.43 | EL18: 140.00 | EM18: 71.42857143
A19: 0.75 | B19: 153.00 | C19: 33.83 | D19: 30.00 | E19: 8.11 | F19: 22.50 | G19: 10.81 | H19: 170.00 | I19: 27.31 | J19: 127.50 | K19: 36.42 | L19: 100.00 | M19: 18.84 | N19: 75.00 | O19: 25.12 | P19: 75.00 | Q19: 23.62 | R19: 100.00 | S19: 18.84 | T19: 135.00 | U19: 30.02 | V19: 75.00 | W19: 25.12 | Y19: 17 | Z19: 0.80 | AA19: =('Cobb-Douglas EI'!$D$14)*Z19 -> 346.67 | AB19: ='Cobb-Douglas EI'!$D$7+('Cobb-Douglas EI'!$C$7*(1+'Cobb-Douglas EI'!$B$7)-(1+'Cobb-Douglas EI'!$B$7)*('Oculto EI'!AA19)) -> 130.00 | AC19: 260 | AD19: 208.00 | AE19: =$AC$27*'Oculto EI'!Z19 -> 208.00 | AF19: 260 | AG19: 1.48 | AH19: 384.80 | AI19: 144.40 | AK19: 17 | AL19: 0.80 | AM19: =('Cobb-Douglas Ampliado EI'!$D$18)*AL19 -> 1,066.67 | AN19: ='Cobb-Douglas Ampliado EI'!$E$8+('Cobb-Douglas Ampliado EI'!$D$8*(1+'Cobb-Douglas Ampliado EI'!$C$8))-((1+'Cobb-Douglas Ampliado EI'!$C$8)*('Oculto EI'!AM19)) -> 320.00 | AO19: 266.6666667 | AP19: 1,024.00 | AQ19: =$AO$27*'Oculto EI'!AL19 -> 213.33 | AR19: 1280 | AS19: 1.48 | AT19: 394.67 | AU19: 1,160.50 | AW19: 17 | AX19: 0.80 | AY19: =('Cobb-Douglas Ampliado EI'!$E$18)*AX19 -> 1,066.67 | AZ19: ='Cobb-Douglas Ampliado EI'!$E$9+('Cobb-Douglas Ampliado EI'!$D$9*(1+'Cobb-Douglas Ampliado EI'!$C$9))-((1+'Cobb-Douglas Ampliado EI'!$C$9)*('Oculto EI'!AY19)) -> 320.00 | BA19: 266.6666667 | BB19: 1,024.00 | BC19: =$BA$27*'Oculto EI'!AX19 -> 213.33 | BD19: 1280 | BE19: 1.48 | BF19: 394.67 | BG19: 1,160.50 | BI19: 17 | BJ19: 0.80 | BK19: ='Regulares EI'!$D$14*'Oculto EI'!BJ19 -> 152.73 | BL19: ='Regulares EI'!$D$7+('Regulares EI'!$C$7*(1+'Regulares EI'!$B$7))-((1+'Regulares EI'!$B$7)*('Oculto EI'!BK19)) -> 42.00 | BM19: 45.00 | BN19: 128.40 | BO19: 36.00 | BP19: 160.50 | BQ19: 1.6 | BR19: 72.00 | BS19: 140.58 | BU19: 17 | BV19: 0.80 | BW19: ='Regulares Ampliado EI'!$D$18*'Oculto EI'!BV19 -> 152.73 | BX19: ='Regulares Ampliado EI'!$E$8+('Regulares Ampliado EI'!$D$8*(1+'Regulares Ampliado EI'!$C$8))-((1+'Regulares Ampliado EI'!$C$8)*('Oculto EI'!BW19)) -> 42.00 | BY19: 45.00 | BZ19: 128.40 | CA19: 36.00 | CB19: 160.50 | CC19: 1.6 | CD19: 72.00 | CE19: 140.58 | CH19: 17 | CI19: 0.80 | CJ19: ='Regulares Ampliado EI'!$E$18*'Oculto EI'!CI19 -> 152.73 | CK19: ='Regulares Ampliado EI'!$E$9+('Regulares Ampliado EI'!$D$9*(1+'Regulares Ampliado EI'!$C$9))-((1+'Regulares Ampliado EI'!$C$9)*('Oculto EI'!CJ19)) -> 42.00 | CL19: 45.00 | CM19: 128.40 | CN19: 36.00 | CO19: 160.50 | CP19: 1.6 | CQ19: 72.00 | CR19: 140.58 | CZ19: =ValorPyF!B5 -> Anualizado nominal | DB19: n | DD19: Periodos de capitalización | DE19: =ValorPyF!C19 -> 12.0 | DF19: Periodos de capitalización | DG19: =ValorPyF!G19 -> 12.0 | DH19: 0.75 | DI19: 1.50 | DJ19: 115.75 | DK19: 1.50 | DL19: 114.97 | DO19: U | DP19: =(DP10^DP17)*(DP11^DP18) -> 100.0 | DQ19: =(DQ10^DQ17)*(DQ11^DQ18) -> 100.0 | DT19: 0.75 | DU19: 150.00 | DV19: 50.00 | DW19: 66.67 | DX19: 150.00 | DY19: 66.66666667 | DZ19: 75.00 | EA19: 100.0 | EB19: 100.00 | EC19: 75.0 | ED19: 75.0 | EE19: 100.0 | EF19: 100.00 | EG19: 75.0 | EH19: 0.75 | EI19: 150.00 | EJ19: 50.00 | EK19: 66.67 | EL19: 150.00 | EM19: 66.66666667
A20: 0.80 | B20: 163.20 | C20: 35.39 | D20: 30.00 | E20: 8.65 | F20: 24.00 | G20: 10.81 | H20: 170.00 | I20: 29.13 | J20: 136.00 | K20: 36.42 | L20: 100.00 | M20: 20.10 | N20: 80.00 | O20: 25.12 | P20: 80.00 | Q20: 23.62 | R20: 100.00 | S20: 20.10 | T20: 142.00 | U20: 31.30 | V20: 80.00 | W20: 25.12 | Y20: 18 | Z20: 0.85 | AA20: =('Cobb-Douglas EI'!$D$14)*Z20 -> 368.33 | AB20: ='Cobb-Douglas EI'!$D$7+('Cobb-Douglas EI'!$C$7*(1+'Cobb-Douglas EI'!$B$7)-(1+'Cobb-Douglas EI'!$B$7)*('Oculto EI'!AA20)) -> 97.50 | AC20: 260 | AD20: 221.00 | AE20: =$AC$27*'Oculto EI'!Z20 -> 221.00 | AF20: 260 | AG20: 1.56 | AH20: 405.60 | AI20: 133.44 | AK20: 18 | AL20: 0.85 | AM20: =('Cobb-Douglas Ampliado EI'!$D$18)*AL20 -> 1,133.33 | AN20: ='Cobb-Douglas Ampliado EI'!$E$8+('Cobb-Douglas Ampliado EI'!$D$8*(1+'Cobb-Douglas Ampliado EI'!$C$8))-((1+'Cobb-Douglas Ampliado EI'!$C$8)*('Oculto EI'!AM20)) -> 240.00 | AO20: 266.6666667 | AP20: 1,088.00 | AQ20: =$AO$27*'Oculto EI'!AL20 -> 226.67 | AR20: 1280 | AS20: 1.56 | AT20: 416.00 | AU20: 1,145.33 | AW20: 18 | AX20: 0.85 | AY20: =('Cobb-Douglas Ampliado EI'!$E$18)*AX20 -> 1,133.33 | AZ20: ='Cobb-Douglas Ampliado EI'!$E$9+('Cobb-Douglas Ampliado EI'!$D$9*(1+'Cobb-Douglas Ampliado EI'!$C$9))-((1+'Cobb-Douglas Ampliado EI'!$C$9)*('Oculto EI'!AY20)) -> 240.00 | BA20: 266.6666667 | BB20: 1,088.00 | BC20: =$BA$27*'Oculto EI'!AX20 -> 226.67 | BD20: 1280 | BE20: 1.56 | BF20: 416.00 | BG20: 1,145.33 | BI20: 18 | BJ20: 0.85 | BK20: ='Regulares EI'!$D$14*'Oculto EI'!BJ20 -> 162.27 | BL20: ='Regulares EI'!$D$7+('Regulares EI'!$C$7*(1+'Regulares EI'!$B$7))-((1+'Regulares EI'!$B$7)*('Oculto EI'!BK20)) -> 31.50 | BM20: 45.00 | BN20: 136.43 | BO20: 38.25 | BP20: 160.50 | BQ20: 1.7 | BR20: 76.50 | BS20: 138.47 | BU20: 18 | BV20: 0.85 | BW20: ='Regulares Ampliado EI'!$D$18*'Oculto EI'!BV20 -> 162.27 | BX20: ='Regulares Ampliado EI'!$E$8+('Regulares Ampliado EI'!$D$8*(1+'Regulares Ampliado EI'!$C$8))-((1+'Regulares Ampliado EI'!$C$8)*('Oculto EI'!BW20)) -> 31.50 | BY20: 45.00 | BZ20: 136.43 | CA20: 38.25 | CB20: 160.50 | CC20: 1.7 | CD20: 76.50 | CE20: 138.47 | CH20: 18 | CI20: 0.85 | CJ20: ='Regulares Ampliado EI'!$E$18*'Oculto EI'!CI20 -> 162.27 | CK20: ='Regulares Ampliado EI'!$E$9+('Regulares Ampliado EI'!$D$9*(1+'Regulares Ampliado EI'!$C$9))-((1+'Regulares Ampliado EI'!$C$9)*('Oculto EI'!CJ20)) -> 31.50 | CL20: 45.00 | CM20: 136.43 | CN20: 38.25 | CO20: 160.50 | CP20: 1.7 | CQ20: 76.50 | CR20: 138.47 | CW20: Capital final | CX20: 1,500,000.00 | CZ20: Años | DA20: =(LN(DA22/DA21))/(LN(1+(DA23-DA34)/(1+DA34))) -> -41.0 | DB20: Años | DC20: =(LN(DC22/DC21))/(LN(1+(DC23-DC24)/(1+DC24))) -> -43.0 | DD20: Tasa de interés anualizada | DE20: =ValorPyF!C20 -> 0.1 | DF20: Tasa de interés anualizada | DG20: =ValorPyF!G20 -> 10% | DH20: 0.80 | DI20: 1.60 | DJ20: 116.80 | DK20: 1.60 | DL20: 115.96 | DT20: 0.80 | DU20: 160.00 | DV20: 40.00 | DW20: 62.50 | DX20: 160.00 | DY20: 62.5 | DZ20: 80.00 | EA20: 100.0 | EB20: 100.00 | EC20: 80.0 | ED20: 80.0 | EE20: 100.0 | EF20: 100.00 | EG20: 80.0 | EH20: 0.80 | EI20: 160.00 | EJ20: 40.00 | EK20: 62.50 | EL20: 160.00 | EM20: 62.5
A21: 0.85 | B21: 173.40 | C21: 36.93 | D21: 30.00 | E21: 9.19 | F21: 25.50 | G21: 10.81 | H21: 170.00 | I21: 30.96 | J21: 144.50 | K21: 36.42 | L21: 100.00 | M21: 21.35 | N21: 85.00 | O21: 25.12 | P21: 85.00 | Q21: 23.62 | R21: 100.00 | S21: 21.35 | T21: 149.00 | U21: 32.58 | V21: 85.00 | W21: 25.12 | Y21: 19 | Z21: 0.90 | AA21: =('Cobb-Douglas EI'!$D$14)*Z21 -> 390.00 | AB21: ='Cobb-Douglas EI'!$D$7+('Cobb-Douglas EI'!$C$7*(1+'Cobb-Douglas EI'!$B$7)-(1+'Cobb-Douglas EI'!$B$7)*('Oculto EI'!AA21)) -> 65.00 | AC21: 260 | AD21: 234.00 | AE21: =$AC$27*'Oculto EI'!Z21 -> 234.00 | AF21: 260 | AG21: 1.64 | AH21: 426.40 | AI21: 123.80 | AK21: 19 | AL21: 0.90 | AM21: =('Cobb-Douglas Ampliado EI'!$D$18)*AL21 -> 1,200.00 | AN21: ='Cobb-Douglas Ampliado EI'!$E$8+('Cobb-Douglas Ampliado EI'!$D$8*(1+'Cobb-Douglas Ampliado EI'!$C$8))-((1+'Cobb-Douglas Ampliado EI'!$C$8)*('Oculto EI'!AM21)) -> 160.00 | AO21: 266.6666667 | AP21: 1,152.00 | AQ21: =$AO$27*'Oculto EI'!AL21 -> 240.00 | AR21: 1280 | AS21: 1.64 | AT21: 437.33 | AU21: 1,131.09 | AW21: 19 | AX21: 0.90 | AY21: =('Cobb-Douglas Ampliado EI'!$E$18)*AX21 -> 1,200.00 | AZ21: ='Cobb-Douglas Ampliado EI'!$E$9+('Cobb-Douglas Ampliado EI'!$D$9*(1+'Cobb-Douglas Ampliado EI'!$C$9))-((1+'Cobb-Douglas Ampliado EI'!$C$9)*('Oculto EI'!AY21)) -> 160.00 | BA21: 266.6666667 | BB21: 1,152.00 | BC21: =$BA$27*'Oculto EI'!AX21 -> 240.00 | BD21: 1280 | BE21: 1.64 | BF21: 437.33 | BG21: 1,131.09 | BI21: 19 | BJ21: 0.90 | BK21: ='Regulares EI'!$D$14*'Oculto EI'!BJ21 -> 171.82 | BL21: ='Regulares EI'!$D$7+('Regulares EI'!$C$7*(1+'Regulares EI'!$B$7))-((1+'Regulares EI'!$B$7)*('Oculto EI'!BK21)) -> 21.00 | BM21: 45.00 | BN21: 144.45 | BO21: 40.50 | BP21: 160.50 | BQ21: 1.8 | BR21: 81.00 | BS21: 136.57 | BU21: 19 | BV21: 0.90 | BW21: ='Regulares Ampliado EI'!$D$18*'Oculto EI'!BV21 -> 171.82 | BX21: ='Regulares Ampliado EI'!$E$8+('Regulares Ampliado EI'!$D$8*(1+'Regulares Ampliado EI'!$C$8))-((1+'Regulares Ampliado EI'!$C$8)*('Oculto EI'!BW21)) -> 21.00 | BY21: 45.00 | BZ21: 144.45 | CA21: 40.50 | CB21: 160.50 | CC21: 1.8 | CD21: 81.00 | CE21: 136.57 | CH21: 19 | CI21: 0.90 | CJ21: ='Regulares Ampliado EI'!$E$18*'Oculto EI'!CI21 -> 171.82 | CK21: ='Regulares Ampliado EI'!$E$9+('Regulares Ampliado EI'!$D$9*(1+'Regulares Ampliado EI'!$C$9))-((1+'Regulares Ampliado EI'!$C$9)*('Oculto EI'!CJ21)) -> 21.00 | CL21: 45.00 | CM21: 144.45 | CN21: 40.50 | CO21: 160.50 | CP21: 1.8 | CQ21: 81.00 | CR21: 136.57 | CW21: Tasa de Interés Anual | CX21: 15% | CZ21: Capital inicial | DA21: =ValorPyF!C7 -> 100.0 | DB21: Capital inicial | DC21: =ValorPyF!G7 -> 100.0 | DD21: Tasa de interés por periodo | DE21: =DE20/DE19 -> 0.8% | DF21: Tasa de interés por periodo | DG21: =DG20/DG19 -> 0.8% | DH21: 0.85 | DI21: 1.70 | DJ21: 117.85 | DK21: 1.70 | DL21: 116.96 | DT21: 0.85 | DU21: 170.00 | DV21: 30.00 | DW21: 58.82 | DX21: 170.00 | DY21: 58.82352941 | DZ21: 85.00 | EA21: 100.0 | EB21: 100.00 | EC21: 85.0 | ED21: 85.0 | EE21: 100.0 | EF21: 100.00 | EG21: 85.0 | EH21: 0.85 | EI21: 170.00 | EJ21: 30.00 | EK21: 58.82 | EL21: 170.00 | EM21: 58.82352941
A22: 0.90 | B22: 183.60 | C22: 38.43 | D22: 30.00 | E22: 9.73 | F22: 27.00 | G22: 10.81 | H22: 170.00 | I22: 32.78 | J22: 153.00 | K22: 36.42 | L22: 100.00 | M22: 22.61 | N22: 90.00 | O22: 25.12 | P22: 90.00 | Q22: 23.62 | R22: 100.00 | S22: 22.61 | T22: 156.00 | U22: 33.86 | V22: 90.00 | W22: 25.12 | Y22: 20 | Z22: 0.95 | AA22: =('Cobb-Douglas EI'!$D$14)*Z22 -> 411.67 | AB22: ='Cobb-Douglas EI'!$D$7+('Cobb-Douglas EI'!$C$7*(1+'Cobb-Douglas EI'!$B$7)-(1+'Cobb-Douglas EI'!$B$7)*('Oculto EI'!AA22)) -> 32.50 | AC22: 260 | AD22: 247.00 | AE22: =$AC$27*'Oculto EI'!Z22 -> 247.00 | AF22: 260 | AG22: 1.72 | AH22: 447.20 | AI22: 115.26 | AK22: 20 | AL22: 0.95 | AM22: =('Cobb-Douglas Ampliado EI'!$D$18)*AL22 -> 1,266.67 | AN22: ='Cobb-Douglas Ampliado EI'!$E$8+('Cobb-Douglas Ampliado EI'!$D$8*(1+'Cobb-Douglas Ampliado EI'!$C$8))-((1+'Cobb-Douglas Ampliado EI'!$C$8)*('Oculto EI'!AM22)) -> 80.00 | AO22: 266.6666667 | AP22: 1,216.00 | AQ22: =$AO$27*'Oculto EI'!AL22 -> 253.33 | AR22: 1280 | AS22: 1.72 | AT22: 458.67 | AU22: 1,117.71 | AW22: 20 | AX22: 0.95 | AY22: =('Cobb-Douglas Ampliado EI'!$E$18)*AX22 -> 1,266.67 | AZ22: ='Cobb-Douglas Ampliado EI'!$E$9+('Cobb-Douglas Ampliado EI'!$D$9*(1+'Cobb-Douglas Ampliado EI'!$C$9))-((1+'Cobb-Douglas Ampliado EI'!$C$9)*('Oculto EI'!AY22)) -> 80.00 | BA22: 266.6666667 | BB22: 1,216.00 | BC22: =$BA$27*'Oculto EI'!AX22 -> 253.33 | BD22: 1280 | BE22: 1.72 | BF22: 458.67 | BG22: 1,117.71 | BI22: 20 | BJ22: 0.95 | BK22: ='Regulares EI'!$D$14*'Oculto EI'!BJ22 -> 181.36 | BL22: ='Regulares EI'!$D$7+('Regulares EI'!$C$7*(1+'Regulares EI'!$B$7))-((1+'Regulares EI'!$B$7)*('Oculto EI'!BK22)) -> 10.50 | BM22: 45.00 | BN22: 152.48 | BO22: 42.75 | BP22: 160.50 | BQ22: 1.9 | BR22: 85.50 | BS22: 134.84 | BU22: 20 | BV22: 0.95 | BW22: ='Regulares Ampliado EI'!$D$18*'Oculto EI'!BV22 -> 181.36 | BX22: ='Regulares Ampliado EI'!$E$8+('Regulares Ampliado EI'!$D$8*(1+'Regulares Ampliado EI'!$C$8))-((1+'Regulares Ampliado EI'!$C$8)*('Oculto EI'!BW22)) -> 10.50 | BY22: 45.00 | BZ22: 152.48 | CA22: 42.75 | CB22: 160.50 | CC22: 1.9 | CD22: 85.50 | CE22: 134.84 | CH22: 20 | CI22: 0.95 | CJ22: ='Regulares Ampliado EI'!$E$18*'Oculto EI'!CI22 -> 181.36 | CK22: ='Regulares Ampliado EI'!$E$9+('Regulares Ampliado EI'!$D$9*(1+'Regulares Ampliado EI'!$C$9))-((1+'Regulares Ampliado EI'!$C$9)*('Oculto EI'!CJ22)) -> 10.50 | CL22: 45.00 | CM22: 152.48 | CN22: 42.75 | CO22: 160.50 | CP22: 1.9 | CQ22: 85.50 | CR22: 134.84 | CW22: Capitalizaciones al año | CX22: 4 | CZ22: Capital final | DA22: =ValorPyF!C8 -> 2.0 | DB22: Capital final | DC22: =ValorPyF!G8 -> 2.0 | DF22: Tasa de inflación anual | DG22: =ValorPyF!G22 -> 5.0% | DH22: 0.90 | DI22: 1.80 | DJ22: 118.90 | DK22: 1.80 | DL22: 117.96 | DT22: 0.90 | DU22: 180.00 | DV22: 20.00 | DW22: 55.56 | DX22: 180.00 | DY22: 55.55555556 | DZ22: 90.00 | EA22: 100.0 | EB22: 100.00 | EC22: 90.0 | ED22: 90.0 | EE22: 100.0 | EF22: 100.00 | EG22: 90.0 | EH22: 0.90 | EI22: 180.00 | EJ22: 20.00 | EK22: 55.56 | EL22: 180.00 | EM22: 55.55555556
A23: 0.95 | B23: 193.80 | C23: 39.92 | D23: 30.00 | E23: 10.27 | F23: 28.50 | G23: 10.81 | H23: 170.00 | I23: 34.60 | J23: 161.50 | K23: 36.42 | L23: 100.00 | M23: 23.86 | N23: 95.00 | O23: 25.12 | P23: 95.00 | Q23: 23.62 | R23: 100.00 | S23: 23.86 | T23: 163.00 | U23: 35.14 | V23: 95.00 | W23: 25.12 | Y23: 21 | Z23: 1.00 | AA23: =('Cobb-Douglas EI'!$D$14)*Z23 -> 433.33 | AB23: ='Cobb-Douglas EI'!$D$7+('Cobb-Douglas EI'!$C$7*(1+'Cobb-Douglas EI'!$B$7)-(1+'Cobb-Douglas EI'!$B$7)*('Oculto EI'!AA23)) -> 0 | AC23: 260 | AD23: =$AD$27*Z23 -> 260.00 | AE23: =$AC$27*'Oculto EI'!Z23 -> 260.00 | AF23: 260 | AG23: 1.8 | AH23: 468.00 | AI23: 107.66 | AK23: 21 | AL23: 1.00 | AM23: =('Cobb-Douglas Ampliado EI'!$D$18)*AL23 -> 1,333.33 | AN23: ='Cobb-Douglas Ampliado EI'!$E$8+('Cobb-Douglas Ampliado EI'!$D$8*(1+'Cobb-Douglas Ampliado EI'!$C$8))-((1+'Cobb-Douglas Ampliado EI'!$C$8)*('Oculto EI'!AM23)) -> 0 | AO23: 266.6666667 | AP23: =$AP$27*AL23 -> 1,280.00 | AQ23: =$AO$27*'Oculto EI'!AL23 -> 266.67 | AR23: 1280 | AS23: 1.8 | AT23: 480.00 | AU23: 1,105.08 | AW23: 21 | AX23: 1.00 | AY23: =('Cobb-Douglas Ampliado EI'!$E$18)*AX23 -> 1,333.33 | AZ23: ='Cobb-Douglas Ampliado EI'!$E$9+('Cobb-Douglas Ampliado EI'!$D$9*(1+'Cobb-Douglas Ampliado EI'!$C$9))-((1+'Cobb-Douglas Ampliado EI'!$C$9)*('Oculto EI'!AY23)) -> 0 | BA23: 266.6666667 | BB23: 1,280.00 | BC23: =$BA$27*'Oculto EI'!AX23 -> 266.67 | BD23: 1280 | BE23: 1.8 | BF23: 480.00 | BG23: 1,105.08 | BI23: 21 | BJ23: 1.00 | BK23: ='Regulares EI'!$D$14*'Oculto EI'!BJ23 -> 190.91 | BL23: ='Regulares EI'!$D$7+('Regulares EI'!$C$7*(1+'Regulares EI'!$B$7))-((1+'Regulares EI'!$B$7)*('Oculto EI'!BK23)) -> 0 | BM23: 45.00 | BN23: 160.50 | BO23: 45.00 | BP23: 160.50 | BQ23: 2 | BR23: 90.00 | BS23: 133.28 | BU23: 21 | BV23: 1.00 | BW23: ='Regulares Ampliado EI'!$D$18*'Oculto EI'!BV23 -> 190.91 | BX23: ='Regulares Ampliado EI'!$E$8+('Regulares Ampliado EI'!$D$8*(1+'Regulares Ampliado EI'!$C$8))-((1+'Regulares Ampliado EI'!$C$8)*('Oculto EI'!BW23)) -> 0 | BY23: 45.00 | BZ23: 160.50 | CA23: 45.00 | CB23: 160.50 | CC23: 2 | CD23: 90.00 | CE23: 133.28 | CH23: 21 | CI23: 1.00 | CJ23: ='Regulares Ampliado EI'!$E$18*'Oculto EI'!CI23 -> 190.91 | CK23: ='Regulares Ampliado EI'!$E$9+('Regulares Ampliado EI'!$D$9*(1+'Regulares Ampliado EI'!$C$9))-((1+'Regulares Ampliado EI'!$C$9)*('Oculto EI'!CJ23)) -> 0 | CL23: 45.00 | CM23: 160.50 | CN23: 45.00 | CO23: 160.50 | CP23: 2 | CQ23: 90.00 | CR23: 133.28 | CW23: Años | CX23: 5 | CZ23: Tasa de interés | DA23: =ValorPyF!C9 -> 0.1 | DB23: Tasa de interés | DC23: =ValorPyF!G9 -> 0.2 | DF23: Tasa de interés real anual | DG23: =(DG20-DG22)/(1+DG22) -> 4.8% | DH23: 0.95 | DI23: 1.90 | DJ23: 119.95 | DK23: 1.90 | DL23: 118.96 | DT23: 0.95 | DU23: 190.00 | DV23: 10.00 | DW23: 52.63 | DX23: 190.00 | DY23: 52.63157895 | DZ23: 95.00 | EA23: 100.0 | EB23: 100.00 | EC23: 95.0 | ED23: 95.0 | EE23: 100.0 | EF23: 100.00 | EG23: 95.0 | EH23: 0.95 | EI23: 190.00 | EJ23: 10.00 | EK23: 52.63 | EL23: 190.00 | EM23: 52.63157895
A24: 1.00 | B24: =(($C$29+$C$30)*1.2)*A24 -> 204.00 | C24: 41.38 | D24: 30.00 | E24: 10.81 | F24: 30.00 | G24: 10.81 | H24: 170.00 | I24: 36.42 | J24: 170.00 | K24: 36.42 | L24: 100.00 | M24: 25.12 | N24: 100.00 | O24: 25.12 | P24: 100.00 | Q24: 23.62 | R24: =$G$29 -> 100.00 | S24: 25.12 | T24: 170.00 | U24: 36.42 | V24: 100.00 | W24: 25.12 | CW24: Valor Presente | CX24: =CX20/((1+(CX21/CX22))^(CX23*CX22)) -> 718,338.51 | DB24: Tasa de inflación | DC24: =ValorPyF!G10 -> 0.1 | DF24: Tasa de interés real por periodo | DG24: =DG23/DG19 -> 0.40% | DH24: 1.00 | DI24: 2.00 | DJ24: 121.00 | DK24: 2.00 | DL24: 119.95 | DT24: 1.00 | DU24: 200.00 | DV24: 0 | DW24: 50.00 | DZ24: =$DP$12*DT24 -> 100.00 | EA24: 100.0 | EB24: 100.00 | EC24: 100.0 | ED24: 100.0 | EE24: 100.0 | EF24: 100.00 | EG24: 100.0 | EH24: 1.00 | EI24: 200.00 | EJ24: 0 | EK24: 50.00 | EL24: 200.00 | EM24: 50
AC25: x1 | AD25: x2 | AO25: x1 | AP25: x2 | BA25: x1 | BB25: x2 | BK25: m | BL25: ='Regulares EI'!$B$7 -> 0.10 | BM25: k | BQ25: =1/10 -> 0.1 | BW25: r | BX25: ='Regulares Ampliado EI'!C8 -> 0.10 | BY25: k | CC25: =1/10 -> 0.1 | CJ25: m | CK25: ='Regulares Ampliado EI'!C9 -> 0.10 | CL25: k | CP25: =1/10 -> 0.1 | DA25: =ValorPyF!C4 -> 0 | DB25: Tasa de interés real | DC25: =(DC23-DC24)/(1+DC24) -> 0.1 | DD25: n | DF25: n | DH25: 1.05 | DI25: 2.10 | DJ25: 122.05 | DK25: 2.10 | DL25: 120.95
H26: ^ | S26: =G35^(1/2) -> 0 | AC26: ='Cobb-Douglas EI'!C20 -> 0.6 | AD26: ='Cobb-Douglas EI'!E20 -> 0.4 | AO26: ='Cobb-Douglas Ampliado EI'!D24 -> 0.2 | AP26: ='Cobb-Douglas Ampliado EI'!F24 -> 0.8 | BA26: ='Cobb-Douglas Ampliado EI'!D24 -> 0.2 | BB26: ='Cobb-Douglas Ampliado EI'!F24 -> 0.8 | BK26: p1 | BL26: ='Regulares EI'!C7 -> 100 | BM26: =(BL28*BL29)-(BM30*BL28)-(BM28*BL29)+(BM28*BM30) -> 3,327.50 | BN26: x1x2 | BO26: bx1 | BP26: ax2 | BQ26: ab | BW26: p1 | BX26: ='Regulares Ampliado EI'!D8 -> 100 | BY26: =(BX28*BX29)-(BY30*BX28)-(BY28*BX29)+(BY28*BY30) -> 3,327.50 | BZ26: x1x2 | CA26: bx1 | CB26: ax2 | CC26: ab | CJ26: p1 | CK26: ='Regulares Ampliado EI'!D9 -> 100 | CL26: =(CK28*CK29)-(CL30*CK28)-(CL28*CK29)+(CL28*CL30) -> 3,327.50 | CM26: x1x2 | CN26: bx1 | CO26: ax2 | CP26: ab | CZ26: r | DA26: =ValorPyF!C5 -> 0 | DB26: r | DC26: =ValorPyF!G24 -> 0.40% | DD26: Años | DE26: =((LN(DE28/DE27))/(LN(1+(DE31))))/DE29 -> -43.4 | DF26: Años | DG26: =(LN(DG28/DG27))/((LN(1+(DG34)))*DG29) -> -90.85 | DH26: 1.10 | DI26: 2.20 | DJ26: 123.10 | DK26: 2.20 | DL26: 121.95
AC27: =(((1+'Cobb-Douglas EI'!B7)*'Cobb-Douglas EI'!C7)+'Cobb-Douglas EI'!D7)/(1+'Cobb-Douglas EI'!B7)*('Cobb-Douglas EI'!C20/('Cobb-Douglas EI'!C20+'Cobb-Douglas EI'!E20)) -> 260.00 | AD27: =(((1+'Cobb-Douglas EI'!B7)*'Cobb-Douglas EI'!C7)+'Cobb-Douglas EI'!D7)*('Cobb-Douglas EI'!E20/('Cobb-Douglas EI'!C20+'Cobb-Douglas EI'!E20)) -> 260.00 | AO27: =(((1+'Cobb-Douglas Ampliado EI'!C8)*'Cobb-Douglas Ampliado EI'!D8)+'Cobb-Douglas Ampliado EI'!E8)/(1+'Cobb-Douglas Ampliado EI'!C8)*('Cobb-Douglas Ampliado EI'!D24/('Cobb-Douglas Ampliado EI'!D24+'Cobb-Douglas Ampliado EI'!F24)) -> 266.67 | AP27: =(((1+'Cobb-Douglas Ampliado EI'!C8)*'Cobb-Douglas Ampliado EI'!D8)+'Cobb-Douglas Ampliado EI'!E8)*('Cobb-Douglas Ampliado EI'!F24/('Cobb-Douglas Ampliado EI'!D24+'Cobb-Douglas Ampliado EI'!F24)) -> 1,280.00 | BA27: =(((1+'Cobb-Douglas Ampliado EI'!C9)*'Cobb-Douglas Ampliado EI'!D9)+'Cobb-Douglas Ampliado EI'!E9)/(1+'Cobb-Douglas Ampliado EI'!C9)*('Cobb-Douglas Ampliado EI'!D24/('Cobb-Douglas Ampliado EI'!D24+'Cobb-Douglas Ampliado EI'!F24)) -> 266.67 | BB27: =(((1+'Cobb-Douglas Ampliado EI'!C9)*'Cobb-Douglas Ampliado EI'!D9)+'Cobb-Douglas Ampliado EI'!E9)*('Cobb-Douglas Ampliado EI'!F24/('Cobb-Douglas Ampliado EI'!D24+'Cobb-Douglas Ampliado EI'!F24)) -> 1,280.00 | BK27: p2 | BL27: ='Regulares EI'!D7 -> 100 | BM27: a | BW27: p2 | BX27: ='Regulares Ampliado EI'!E8 -> 100 | BY27: a | CJ27: p2 | CK27: ='Regulares Ampliado EI'!E9 -> 100 | CL27: a | CW27: TASA NO ANUAL | CZ27: Tasa de interés | DA27: =DA34+((1+DA34)*(((DA29/DA28)^(1/DA30))-1)) -> -1.0 | DB27: Tasa de interés | DC27: =DC31+((1+DC31)*(((DC29/DC28)^(1/DC30))-1)) -> -1.0 | DD27: Capital inicial | DE27: =ValorPyF!C17 -> 150.0 | DF27: Capital inicial | DG27: =ValorPyF!G17 -> 150.0 | DI27: anualizada nominal | DJ27: anualizada real | DK27: capitalizada nominal | DL27: capitalizada real
B28: Utilidad | C28: ='Incertidumbre UE'!$C$5 -> 0.7 | E28: a | F28: ='Incertidumbre UE'!D5 -> 0.7 | AD28: =(AC27^(AC26))*(AD27^(AD26)) -> 260 | AP28: =(AO27^(AO26))*(AP27^(AP26)) -> 935.323233 | BB28: =(BA27^(BA26))*(BB27^(BB26)) -> 935.323233 | BK28: C1* | BL28: ='Regulares EI'!E20+(-'Regulares EI'!F20+'Regulares EI'!D7+('Regulares EI'!C7*(1+'Regulares EI'!B7))-('Regulares EI'!E20*(1+'Regulares EI'!B7)))/(2*(1+'Regulares EI'!B7)) -> 45.00 | BM28: ='Regulares EI'!E20 -> -10 | BW28: C1* | BX28: ='Regulares Ampliado EI'!F24+(-'Regulares Ampliado EI'!G24+'Regulares Ampliado EI'!E8+('Regulares Ampliado EI'!D8*(1+'Regulares Ampliado EI'!C8))-('Regulares Ampliado EI'!F24*(1+'Regulares Ampliado EI'!C8)))/(2*(1+'Regulares Ampliado EI'!C8)) -> 45.00 | BY28: ='Regulares Ampliado EI'!F24 -> -10 | CJ28: C1* | CK28: ='Regulares Ampliado EI'!F25+(-'Regulares Ampliado EI'!G25+'Regulares Ampliado EI'!E9+('Regulares Ampliado EI'!D9*(1+'Regulares Ampliado EI'!C9))-('Regulares Ampliado EI'!F25*(1+'Regulares Ampliado EI'!C9)))/(2*(1+'Regulares Ampliado EI'!C9)) -> 45.00 | CL28: ='Regulares Ampliado EI'!F25 -> -10 | CW28: Capital inicial | CX28: 1,000.00 | CZ28: Capital inicial | DA28: =ValorPyF!C7 -> 100.0 | DB28: Capital inicial | DC28: =ValorPyF!G7 -> 100.0 | DD28: Capital final | DE28: =ValorPyF!C18 -> 2.0 | DF28: Capital final | DG28: =ValorPyF!G18 -> 2.0 | DI28: =ValorPyF!DI28 -> Anualizado nominal | DJ28: =ValorPyF!DJ28 -> Anualizado real
B29: Ingreso | C29: ='Incertidumbre UE'!C6 -> 100.0 | E29: Ingreso | F29: ='Incertidumbre UE'!D6 -> 100.0 | G29: =(C32*((C29+C30)))+(C33*((C29+C31))) -> 100.0 | BK29: C2* | BL29: ='Regulares EI'!F20+((-'Regulares EI'!F20+'Regulares EI'!D7+('Regulares EI'!C7*(1+'Regulares EI'!B7))-('Regulares EI'!E20*(1+'Regulares EI'!B7)))/2) -> 160.50 | BM29: b | BW29: C2* | BX29: ='Regulares Ampliado EI'!G24+((-'Regulares Ampliado EI'!G24+'Regulares Ampliado EI'!E8+('Regulares Ampliado EI'!D8*(1+'Regulares Ampliado EI'!C8))-('Regulares Ampliado EI'!F24*(1+'Regulares Ampliado EI'!C8)))/2) -> 160.50 | BY29: b | CJ29: C2* | CK29: ='Regulares Ampliado EI'!G25+((-'Regulares Ampliado EI'!G25+'Regulares Ampliado EI'!E9+('Regulares Ampliado EI'!D9*(1+'Regulares Ampliado EI'!C9))-('Regulares Ampliado EI'!F25*(1+'Regulares Ampliado EI'!C9)))/2) -> 160.50 | CL29: b | CW29: Tasa de Interés por Periodo | CX29: 2% | CZ29: Capital final | DA29: =ValorPyF!C8 -> 2.0 | DB29: Capital final | DC29: =ValorPyF!G8 -> 2.0 | DD29: Periodos de capitalización | DE29: =ValorPyF!C19 -> 12.0 | DF29: Periodos de capitalización | DG29: =ValorPyF!G19 -> 12.0 | DH29: años | DI29: =ValorPyF!DI29 -> 2 | DJ29: =ValorPyF!DJ29 -> 2
B30: Ganancia | C30: ='Incertidumbre UE'!C7 -> 70.0 | E30: Ganancia | F30: ='Incertidumbre UE'!D7 -> 70.0 | BK30: lamda | BM30: ='Regulares EI'!F20 -> 100 | BW30: lamda | BY30: ='Regulares Ampliado EI'!G24 -> 100 | CJ30: lamda | CL30: ='Regulares Ampliado EI'!G25 -> 100 | CW30: Capitalizaciones al año | CX30: 12 | CZ30: Años | DA30: =ValorPyF!C9 -> 0.1 | DB30: Años | DC30: =ValorPyF!G9 -> 0.2 | DD30: Tasa de interés anualizada | DE30: =ValorPyF!C20 -> 10.0% | DF30: Tasa de interés anualizada | DG30: =ValorPyF!G20 -> 10.0% | DH30: capital inicial | DI30: =ValorPyF!DI30 -> 100 | DJ30: =ValorPyF!DJ30 -> 100
B31: Pérdida | C31: ='Incertidumbre UE'!C8 -> -70.0 | E31: Pérdida | F31: ='Incertidumbre UE'!D8 -> -70.0 | CW31: Años | CX31: 2 | DB31: Tasa de inflación | DC31: =ValorPyF!G10 -> 0.1 | DD31: Tasa de interés por periodo | DE31: =DE30/DE29 -> 0.8% | DF31: Tasa de interés por periodo | DG31: =DG30/DG29 -> 0.8% | DH31: capital final | DI31: =ValorPyF!DI31 -> 121 | DJ31: =ValorPyF!DJ31 -> 119.9546485
B32: p Ganancia | C32: ='Incertidumbre UE'!C9 -> 0.5 | E32: p Ganancia | F32: ='Incertidumbre UE'!D9 -> 0.5 | CW32: Valor Futuro | CX32: =CX28*((1+(CX29))^(CX31*CX30)) -> 1,608.44 | DB32: Tasa de interés real | DC32: =(DC27-DC31)/(1+DC31) -> -1.0 | DF32: Tasa de inflación anual | DG32: =ValorPyF!G22 -> 5.0% | DI32: =ValorPyF!DI32 -> 1.05 | DJ32: =ValorPyF!DJ32 -> 0.9977324263
B33: p Pérdida | C33: =1-C32 -> 0.50 | E33: p Pérdida | F33: =1-F32 -> 0.50 | DF33: Tasa de interés real anual | DG33: =(DG30-DG32)/(1+DG32) -> 4.8% | DI33: Anualizada nominal | DJ33: Anualizada real | DK33: Capitalizada nominal | DL33: Capitalizada real
C34: =C36*C32+C37*C33 -> 100 | F34: =F36*F32+F37*F33 -> 100 | CW34: Capital final | CX34: 1,500,000.00 | CZ34: Inflación | DA34: 0.00 | DB34: Inflación | DC34: =ValorPyF!G11 -> 0.10 | DF34: Tasa de interés real por periodo | DG34: =DG33/DG29 -> 0.40%
B35: Utilidad ingreso | C35: =C29^C28 -> 25.12 | E35: U Ingreso | F35: =F29^F28 -> 25.12 | CW35: Tasa de Interés por Periodo | CX35: 5% | DD35: r | DF35: r
B36: Ganancia | C36: =C29+C30 -> 170.00 | F36: =F29+F30 -> 170.00 | BK36: 59221065 | CW36: Capitalizaciones al año | CX36: 4 | DD36: Tasa de interés anualizada | DE36: =DE46+((1+DE42)*(((((DE38/DE37)^(1/(DE39*DE40)))-1))*DE40)) -> -9.7% | DF36: Tasa de interés anualizada | DG36: =DG42+((1+DG42)*(((((DG38/DG37)^(1/(DG39*DG40)))-1))*DG40)) -> -5.2%
B37: Pérdida | C37: =C29+C31 -> 30.00 | F37: =F29+F31 -> 30.00 | CW37: Años | CX37: 5 | DD37: Capital inicial | DE37: =ValorPyF!C17 -> 150.0 | DF37: Capital inicial | DG37: =ValorPyF!G17 -> 150.0
B38: U Ganancia | C38: =(C29+C30)^$C$28 -> 36.42 | E38: U Ganancia | F38: =(F29+F30)^$F$28 -> 36.42 | CW38: Valor Presente | CX38: =CX34/((1+(CX35))^(CX37*CX36)) -> 565,334.22 | DD38: Capital final | DE38: =ValorPyF!C18 -> 2.0 | DF38: Capital final | DG38: =ValorPyF!G18 -> 2.0
B39: U Pérdida | C39: =(C29+C31)^$C$28 -> 10.81 | F39: =(F29+F31)^$F$28 -> 10.81 | O39: ingreso | P39: utilidad | DD39: Años | DE39: =ValorPyF!C19 -> 12.0 | DF39: Años | DG39: =ValorPyF!G19 -> 12.0
B40: UE Ganancia | C40: =$C$32*(($C$29+$C$30)^$C$28) -> 18.21 | F40: =$F$32*(($F$29+$F$30)^$F$28) -> 18.21 | O40: =C29 -> 100.0 | P40: =O40^$C$28 -> 25.1 | Q40: Utilidad de la riquza segura | DD40: Periodos de capitalización | DE40: =ValorPyF!C20 -> 0.1 | DF40: Periodos de capitalización | DG40: =ValorPyF!G20 -> 0.1
B41: UE Pérdida | C41: =$C$33*(($C$29+$C$31)^$C$28) -> 5.41 | E41: U Pérdida | F41: =$F$33*(($F$29+$F$31)^$F$28) -> 5.41 | O41: =(C29+C31) -> 30.0 | P41: =O41^$C$28 -> 10.8 | Q41: utilidad perdida | DD41: Tasa de interés por periodo | DE41: =DE36/DE40 -> -97.3% | DF41: Tasa de interés por periodo | DG41: =DG36/DG40 -> -52.1%
B42: G+P | C42: =C40+C41 -> 23.62 | E42: U Esperada | F42: =F40+F41 -> 23.62 | O42: =C29+C30 -> 170.0 | P42: =O42^$C$28 -> 36.4 | Q42: utilidad ganar | DF42: Tasa de inflación anual | DG42: =ValorPyF!G22 -> 5.0%
B43: Pendiente | C43: =(C42-C39)/(C29-C37) -> 0.18 | F43: =(F42-F39)/(F29-F37) -> 0.18 | O43: =(O41*C33)+(O42*C32) -> 100 | P43: =O43^$C$28 -> 25.1 | Q43: Utilidad del valor esperado | DF43: Tasa de interés real anual | DG43: =(DG36-DG42)/(1+DG42) -> -9.7%
B44: Toma de decisión | C44: =IF(C42>C35,"Acepta el juego","Rechaza el juego") -> Rechaza el juego | E44: Toma de decisión | F44: =IF(F42>F35,"Acepta el juego","Rechaza el juego") -> Rechaza el juego | P44: =(P41*C33)+(P42*C32) -> 23.6 | Q44: Utilidad esperada del juego | DF44: Tasa de interés real por periodo | DG44: =DG43/DG40 -> -97.26%
B45: Desviación media | C45: =C46^(1/2) -> 70 | E45: Desviación media | F45: =F46^(1/2) -> 70
B46: Varianza | C46: =(((C37-C34)^2)*C33)+(((C36-C34)^2)*C32) -> 4900 | E46: Varianza | F46: =(((F37-F34)^2)*F33)+(((F36-F34)^2)*F32) -> 4900 | DD46: Inflación | DE46: 0.00 | DF46: Inflación | DG46: 0.00
DD48: Rr Cap Inicial | DE48: =(DE20-$DE$46)/(1+$DE$46) -> 0.1
DD49: Rr Cap Final | DE49: =(DE10-$DE$46)/(1+$DE$46) -> 0.1
DD50: Rr n | DE50: =(DE30-$DE$46)/(1+$DE$46) -> 0.1
CZ56: Draw | DB56: Draw | DD56: Draw | DF56: Draw
CZ57: CI | DA57: =DA6 -> 121.0 | DB57: CI | DC57: =DC7 -> 100.0 | DD57: CI | DE57: =DE7 -> 150.0 | DF57: CI | DG57: =DG7 -> 150.0
CZ58: CF | DA58: =DA7 -> 100.0 | DB58: CF | DC58: =DC6 -> 120.0 | DD58: CF | DE58: =DE16 -> 122.9 | DF58: CF | DG58: =DG17 -> 150.0
CZ59: n | DA59: =DA8 -> 2.0 | DB59: n | DC59: =DC8 -> 2.0 | DD59: n | DE59: =DE8 -> 2.0 | DF59: n | DG59: =DG8 -> 2.0
CZ60: r | DA60: =DA9 -> 0.1 | DB60: r | DC60: =DC9 -> 0.2 | DD60: r | DE60: =DE10 -> 0.1 | DF60: r | DG60: =DG10 -> 0.1
CZ61: m | DA61: =DA10 -> 2.0 | DB61: m | DC61: =DC10 -> 0.1 | DD61: m | DE61: =DE25 -> 0.0 | DF61: m | DG61: =DG9 -> 12.0
DD62: inflaciòn | DE62: =#REF! ->  | DF62: inflaciòn | DG62: =DI31 -> 121.0
CZ65: Valor presente | DB65: Capitalizado | DD65: Valor presente
CZ66: Anualizado | DD66: Anualizado | DF66: Capitalizado
CZ67: CF | DB67: CF | DD67: CF
CZ68: Capital final | DA68: =DA69*((1+(DA71-DA96)/(1+DA96))^DA70) -> 0.0 | DB68: Capital final | DC68: =DC69*((1+(((DC71-DA96)/(1+DA96))/DC72))^(DC70*DC72)) ->  | DD68: CI | DE68: =ValorPyF!G121 -> 0.0 | DF68: CF
CZ69: Capital inicial | DA69: =ValorPyF!C56 -> 0.0 | DB69: Capital inicial | DC69: =ValorPyF!G56 -> 0.0 | DD69: CF | DE69: =DE68*((1+(DE71-DE96)/(1+DE96))^DE70) -> 0.0 | DF69: CI | DG69: =ValorPyF!I122 -> 0.0
CZ70: Años | DA70: =ValorPyF!C57 -> 0.0 | DB70: Años | DC70: =ValorPyF!G57 -> 0.0 | DD70: n | DE70: =ValorPyF!G123 -> 0.0 | DF70: CF | DG70: =DG69*((1+(((DG72-DI78)/(1+DI78))/DG73))^(DG71*DG73)) -> 
CZ71: Tasa de interés | DA71: =ValorPyF!C58 -> 0.0 | DB71: Tasa de interés | DC71: =ValorPyF!G58 -> 0.0 | DD71: r | DE71: =ValorPyF!G124 -> 0.0 | DF71: n | DG71: =ValorPyF!I124 -> 0.0
DB72: Tasa de inflación | DC72: =ValorPyF!G59 -> 0.0 | DF72: r | DG72: =ValorPyF!I125 -> 0.0
DB73: Tasa de interés real | DF73: m | DG73: =ValorPyF!I126 -> 0.0
CZ74: CI | DB74: CI | DD74: CI
CZ75: Capital inicial | DA75: =DA76/((1+((DA78-DA96)/(1+DA96)))^DA77) -> 0.0 | DB75: Capital inicial | DC75: =DC76/((1+(((DC78-DA96)/(1+DA96))/DC79))^(DC77*DC79)) ->  | DD75: CI | DE75: =DE76/((1+((DE78-DE96)/(1+DE96)))^DE77) -> 0.0 | DF75: CI
CZ76: Capital final | DA76: =ValorPyF!C56 -> 0.0 | DB76: Capital final | DC76: =ValorPyF!A56 -> 0.0 | DD76: CF | DE76: =ValorPyF!G117 -> 0.0 | DF76: CI | DG76: =DG77/((1+(((DG79-DI78)/(1+DI78))/DG80))^(DG78*DG80)) -> 
CZ77: Años | DA77: =ValorPyF!C57 -> 0.0 | DB77: Años | DC77: =ValorPyF!A57 -> 0.0 | DD77: n | DE77: =ValorPyF!G118 -> 0.0 | DF77: CF | DG77: =ValorPyF!I117 -> 0.0
CZ78: Tasa de interés | DA78: =ValorPyF!C58 -> 0.0 | DB78: Tasa de interés | DC78: =ValorPyF!A58 -> 0.0 | DD78: r | DE78: =ValorPyF!G58 -> 0.0 | DF78: n | DG78: =ValorPyF!I118 -> 0.0
DB79: Tasa de inflación | DC79: =ValorPyF!A59 -> 0.0 | DF79: r | DG79: =ValorPyF!I119 -> 0.0
DB80: Tasa de interés real | DF80: m | DG80: =ValorPyF!I120 -> 0.0
CZ81: =ValorPyF!B54 -> 0 | DB81: n | DD81: n
CZ82: Años | DA82: =(LN(DA84/DA83))/(LN(1+(DA85-DA96)/(1+DA96))) ->  | DB82: Años | DC82: =(LN(DC84/DC83))/((LN(1+(((DC85-DA96)/(1+DA96))/DC86)))*DC86) ->  | DD82: CI | DE82: =ValorPyF!G126 -> 0.0 | DF82: n
CZ83: Capital inicial | DA83: =ValorPyF!C56 -> 0.0 | DB83: Capital inicial | DC83: =ValorPyF!G56 -> 0.0 | DD83: CF | DE83: =ValorPyF!G127 -> 0.0 | DF83: CI | DG83: =ValorPyF!I128 -> 0.0
CZ84: Capital final | DA84: =ValorPyF!C57 -> 0.0 | DB84: Capital final | DC84: =ValorPyF!G57 -> 0.0 | DD84: n | DE84: =(LN(DE83/DE82))/(LN(1+(DE85-DE96)/(1+DE96))) ->  | DF84: CF | DG84: =ValorPyF!I129 -> 0.0
CZ85: Tasa de interés | DA85: =ValorPyF!C58 -> 0.0 | DB85: Tasa de interés | DC85: =ValorPyF!G58 -> 0.0 | DD85: r | DE85: =ValorPyF!G129 -> 0.0 | DF85: n | DG85: =(LN(DG84/DG83))/((LN(1+(((DG86-DI78)/(1+DI78))/DG87)))*DG87) -> 
DB86: Tasa de inflación | DC86: =ValorPyF!G59 -> 0.0 | DF86: r | DG86: =ValorPyF!I131 -> 0.0
DB87: Tasa de interés real | DF87: m | DG87: =ValorPyF!I132 -> 0.0
CZ88: r | DB88: r | DD88: r
CZ89: Tasa de interés | DA89: =DA96+((1+DA96)*(((DA91/DA90)^(1/DA92))-1)) ->  | DB89: Tasa de interés | DC89: =DA96+(((DC91/DC90)^(1/(DC92*DC93))-1)*((1+DA96)*(DC93))) ->  | DD89: CI | DE89: =ValorPyF!G131 -> 0.0 | DF89: r
CZ90: Capital inicial | DA90: =ValorPyF!C56 -> 0.0 | DB90: Capital inicial | DC90: =ValorPyF!G56 -> 0.0 | DD90: CF | DE90: =ValorPyF!G132 -> 0.0 | DF90: CI | DG90: =ValorPyF!I134 -> 0.0
CZ91: Capital final | DA91: =ValorPyF!C57 -> 0.0 | DB91: Capital final | DC91: =ValorPyF!G57 -> 0.0 | DD91: n | DE91: =ValorPyF!G133 -> 0.0 | DF91: CF | DG91: =ValorPyF!I135 -> 0.0
CZ92: Años | DA92: =ValorPyF!C58 -> 0.0 | DB92: Años | DC92: =ValorPyF!G58 -> 0.0 | DD92: r | DE92: =DE96+((1+DE96)*(((DE90/DE89)^(1/DE91))-1)) ->  | DF92: n | DG92: =ValorPyF!I136 -> 0.0
DB93: Tasa de inflación | DC93: =ValorPyF!G59 -> 0.0 | DF93: r | DG93: =DI78+(((DG91/DG90)^(1/(DG92*DG94))-1)*((1+DI78)*(DG94))) -> 
DB94: Tasa de interés real | DF94: m | DG94: =ValorPyF!I138 -> 0.0
CZ96: Inflación | DA96: 0.00 | DB96: Inflación | DC96: =ValorPyF!G60 -> 0.00 | DD96: Inflación | DE96: =ValorPyF!G141 -> 0.00
